Workbook

Sheet 阳光里
A1: 阳光小镇·青年汇2024年空置房明细表
A2: 序号 | B2: 项目名称 | C2: 楼栋 | D2: 房间号 | E2: 面积 | F2: 备注
A3: 1 | B3: 阳光小镇 | C3: 1# | D3: 10102 | E3: 50.33 | F3: 两室一厅
A4: 2 | B4: 阳光小镇 | C4: 1# | D4: 10201 | E4: 49.96 | F4: 两室一厅
A5: 3 | B5: 阳光小镇 | C5: 1# | D5: 10202 | E5: 50.33 | F5: 两室一厅
A6: 4 | B6: 阳光小镇 | C6: 1# | D6: 10203 | E6: 50.33 | F6: 两室一厅
A7: 5 | B7: 阳光小镇 | C7: 1# | D7: 10204 | E7: 49.96 | F7: 两室一厅
A8: 6 | B8: 阳光小镇 | C8: 1# | D8: 10301 | E8: 49.96 | F8: 两室一厅
A9: 7 | B9: 阳光小镇 | C9: 1# | D9: 10302 | E9: 50.33 | F9: 两室一厅
A10: 8 | B10: 阳光小镇 | C10: 1# | D10: 10303 | E10: 50.33 | F10: 两室一厅
A11: 9 | B11: 阳光小镇 | C11: 1# | D11: 10304 | E11: 49.96 | F11: 两室一厅
A12: 10 | B12: 阳光小镇 | C12: 1# | D12: 10401 | E12: 49.96 | F12: 两室一厅
A13: 11 | B13: 阳光小镇 | C13: 1# | D13: 10402 | E13: 50.33 | F13: 两室一厅
A14: 12 | B14: 阳光小镇 | C14: 1# | D14: 10403 | E14: 50.33 | F14: 两室一厅
A15: 13 | B15: 阳光小镇 | C15: 1# | D15: 10404 | E15: 49.96 | F15: 两室一厅
A16: 14 | B16: 阳光小镇 | C16: 1# | D16: 10501 | E16: 49.96 | F16: 两室一厅
A17: 15 | B17: 阳光小镇 | C17: 1# | D17: 10502 | E17: 50.33 | F17: 两室一厅
A18: 16 | B18: 阳光小镇 | C18: 1# | D18: 10503 | E18: 50.33 | F18: 两室一厅
A19: 17 | B19: 阳光小镇 | C19: 1# | D19: 10504 | E19: 49.96 | F19: 两室一厅
A20: 18 | B20: 阳光小镇 | C20: 1# | D20: 10601 | E20: 49.96 | F20: 两室一厅
A21: 19 | B21: 阳光小镇 | C21: 1# | D21: 10602 | E21: 50.33 | F21: 两室一厅
A22: 20 | B22: 阳光小镇 | C22: 1# | D22: 10603 | E22: 50.33 | F22: 两室一厅
A23: 21 | B23: 阳光小镇 | C23: 1# | D23: 10604 | E23: 49.96 | F23: 两室一厅
A24: 22 | B24: 阳光小镇 | C24: 1# | D24: 20101 | E24: 50.33 | F24: 两室一厅
A25: 23 | B25: 阳光小镇 | C25: 1# | D25: 20201 | E25: 49.96 | F25: 两室一厅
A26: 24 | B26: 阳光小镇 | C26: 1# | D26: 20202 | E26: 50.33 | F26: 两室一厅
A27: 25 | B27: 阳光小镇 | C27: 1# | D27: 20203 | E27: 50.33 | F27: 两室一厅
A28: 26 | B28: 阳光小镇 | C28: 1# | D28: 20204 | E28: 49.96 | F28: 两室一厅
A29: 27 | B29: 阳光小镇 | C29: 1# | D29: 20301 | E29: 49.96 | F29: 两室一厅
A30: 28 | B30: 阳光小镇 | C30: 1# | D30: 20302 | E30: 50.33 | F30: 两室一厅
A31: 29 | B31: 阳光小镇 | C31: 1# | D31: 20303 | E31: 50.33 | F31: 两室一厅
A32: 30 | B32: 阳光小镇 | C32: 1# | D32: 20304 | E32: 49.96 | F32: 两室一厅
A33: 31 | B33: 阳光小镇 | C33: 1# | D33: 20401 | E33: 49.96 | F33: 两室一厅
A34: 32 | B34: 阳光小镇 | C34: 1# | D34: 20402 | E34: 50.33 | F34: 两室一厅
A35: 33 | B35: 阳光小镇 | C35: 1# | D35: 20403 | E35: 50.33 | F35: 两室一厅
A36: 34 | B36: 阳光小镇 | C36: 1# | D36: 20404 | E36: 49.96 | F36: 两室一厅
A37: 35 | B37: 阳光小镇 | C37: 1# | D37: 20501 | E37: 49.96 | F37: 两室一厅
A38: 36 | B38: 阳光小镇 | C38: 1# | D38: 20502 | E38: 50.33 | F38: 两室一厅
A39: 37 | B39: 阳光小镇 | C39: 1# | D39: 20503 | E39: 50.33 | F39: 两室一厅
A40: 38 | B40: 阳光小镇 | C40: 1# | D40: 20504 | E40: 49.96 | F40: 两室一厅
A41: 39 | B41: 阳光小镇 | C41: 1# | D41: 20601 | E41: 49.96 | F41: 两室一厅
A42: 40 | B42: 阳光小镇 | C42: 1# | D42: 20602 | E42: 50.33 | F42: 两室一厅
A43: 41 | B43: 阳光小镇 | C43: 1# | D43: 20603 | E43: 50.33 | F43: 两室一厅
A44: 42 | B44: 阳光小镇 | C44: 1# | D44: 20604 | E44: 49.96 | F44: 两室一厅
A45: 43 | B45: 阳光小镇 | C45: 2# | D45: 10101 | E45: 50.33 | F45: 两室一厅
A46: 44 | B46: 阳光小镇 | C46: 2# | D46: 10201 | E46: 49.96 | F46: 两室一厅
A47: 45 | B47: 阳光小镇 | C47: 2# | D47: 10202 | E47: 50.33 | F47: 两室一厅
A48: 46 | B48: 阳光小镇 | C48: 2# | D48: 10203 | E48: 50.33 | F48: 两室一厅
A49: 47 | B49: 阳光小镇 | C49: 2# | D49: 10204 | E49: 49.96 | F49: 两室一厅
A50: 48 | B50: 阳光小镇 | C50: 2# | D50: 10303 | E50: 50.33 | F50: 两室一厅
A51: 49 | B51: 阳光小镇 | C51: 2# | D51: 10304 | E51: 49.96 | F51: 两室一厅
A52: 50 | B52: 阳光小镇 | C52: 2# | D52: 10401 | E52: 49.96 | F52: 两室一厅
A53: 51 | B53: 阳光小镇 | C53: 2# | D53: 10402 | E53: 50.33 | F53: 两室一厅
A54: 52 | B54: 阳光小镇 | C54: 2# | D54: 10403 | E54: 50.33 | F54: 两室一厅
A55: 53 | B55: 阳光小镇 | C55: 2# | D55: 10404 | E55: 49.96 | F55: 两室一厅
A56: 54 | B56: 阳光小镇 | C56: 2# | D56: 10501 | E56: 49.96 | F56: 两室一厅
A57: 55 | B57: 阳光小镇 | C57: 2# | D57: 10502 | E57: 50.33 | F57: 两室一厅
A58: 56 | B58: 阳光小镇 | C58: 2# | D58: 10503 | E58: 50.33 | F58: 两室一厅
A59: 57 | B59: 阳光小镇 | C59: 2# | D59: 10504 | E59: 49.96 | F59: 两室一厅
A60: 58 | B60: 阳光小镇 | C60: 2# | D60: 10601 | E60: 49.96 | F60: 两室一厅
A61: 59 | B61: 阳光小镇 | C61: 2# | D61: 10602 | E61: 50.33 | F61: 两室一厅
A62: 60 | B62: 阳光小镇 | C62: 2# | D62: 10603 | E62: 50.33 | F62: 两室一厅
A63: 61 | B63: 阳光小镇 | C63: 2# | D63: 10604 | E63: 49.96 | F63: 两室一厅
A64: 62 | B64: 阳光小镇 | C64: 2# | D64: 20201 | E64: 49.96 | F64: 两室一厅
A65: 63 | B65: 阳光小镇 | C65: 2# | D65: 20202 | E65: 50.33 | F65: 两室一厅
A66: 64 | B66: 阳光小镇 | C66: 2# | D66: 20204 | E66: 49.96 | F66: 两室一厅
A67: 65 | B67: 阳光小镇 | C67: 2# | D67: 20301 | E67: 49.96 | F67: 两室一厅
A68: 66 | B68: 阳光小镇 | C68: 2# | D68: 20302 | E68: 50.33 | F68: 两室一厅
A69: 67 | B69: 阳光小镇 | C69: 2# | D69: 20303 | E69: 50.33 | F69: 两室一厅
A70: 68 | B70: 阳光小镇 | C70: 2# | D70: 20501 | E70: 49.96 | F70: 两室一厅
A71: 69 | B71: 阳光小镇 | C71: 2# | D71: 20502 | E71: 50.33 | F71: 两室一厅
A72: 70 | B72: 阳光小镇 | C72: 2# | D72: 20503 | E72: 50.33 | F72: 两室一厅
A73: 71 | B73: 阳光小镇 | C73: 2# | D73: 20601 | E73: 49.96 | F73: 两室一厅
A74: 72 | B74: 阳光小镇 | C74: 2# | D74: 20602 | E74: 50.33 | F74: 两室一厅
A75: 73 | B75: 阳光小镇 | C75: 3# | D75: 10303 | E75: 50.33 | F75: 两室一厅
A76: 74 | B76: 阳光小镇 | C76: 3# | D76: 10304 | E76: 49.96 | F76: 两室一厅
A77: 75 | B77: 阳光小镇 | C77: 3# | D77: 10402 | E77: 50.33 | F77: 两室一厅
A78: 76 | B78: 阳光小镇 | C78: 3# | D78: 10502 | E78: 50.33 | F78: 两室一厅
A79: 77 | B79: 阳光小镇 | C79: 3# | D79: 10601 | E79: 49.96 | F79: 两室一厅
A80: 78 | B80: 阳光小镇 | C80: 3# | D80: 10602 | E80: 50.33 | F80: 两室一厅
A81: 79 | B81: 阳光小镇 | C81: 3# | D81: 10603 | E81: 50.33 | F81: 两室一厅
A82: 80 | B82: 阳光小镇 | C82: 3# | D82: 20202 | E82: 50.33 | F82: 两室一厅
A83: 81 | B83: 阳光小镇 | C83: 3# | D83: 20301 | E83: 49.96 | F83: 两室一厅
A84: 82 | B84: 阳光小镇 | C84: 3# | D84: 20302 | E84: 50.33 | F84: 两室一厅
A85: 83 | B85: 阳光小镇 | C85: 3# | D85: 20303 | E85: 50.33 | F85: 两室一厅
A86: 84 | B86: 阳光小镇 | C86: 3# | D86: 20304 | E86: 49.96 | F86: 两室一厅
A87: 85 | B87: 阳光小镇 | C87: 3# | D87: 20501 | E87: 49.96 | F87: 两室一厅
A88: 86 | B88: 阳光小镇 | C88: 3# | D88: 20502 | E88: 50.33 | F88: 两室一厅
A89: 87 | B89: 阳光小镇 | C89: 3# | D89: 20503 | E89: 50.33 | F89: 两室一厅
A90: 88 | B90: 阳光小镇 | C90: 3# | D90: 20504 | E90: 49.96 | F90: 两室一厅
A91: 89 | B91: 阳光小镇 | C91: 4# | D91: 10101 | E91: 45.22 | F91: 一室一厅
A92: 90 | B92: 阳光小镇 | C92: 4# | D92: 10102 | E92: 49.93 | F92: 一室一厅
A93: 91 | B93: 阳光小镇 | C93: 4# | D93: 10103 | E93: 49.93 | F93: 一室一厅
A94: 92 | B94: 阳光小镇 | C94: 4# | D94: 10104 | E94: 44.17 | F94: 一室一厅
A95: 93 | B95: 阳光小镇 | C95: 4# | D95: 10202 | E95: 49.93 | F95: 一室一厅
A96: 94 | B96: 阳光小镇 | C96: 4# | D96: 10203 | E96: 49.93 | F96: 一室一厅
A97: 95 | B97: 阳光小镇 | C97: 4# | D97: 10204 | E97: 44.17 | F97: 一室一厅
A98: 96 | B98: 阳光小镇 | C98: 4# | D98: 10301 | E98: 45.22 | F98: 一室一厅
A99: 97 | B99: 阳光小镇 | C99: 4# | D99: 10303 | E99: 49.93 | F99: 一室一厅
A100: 98 | B100: 阳光小镇 | C100: 4# | D100: 10304 | E100: 44.17 | F100: 一室一厅
A101: 99 | B101: 阳光小镇 | C101: 4# | D101: 10402 | E101: 49.93 | F101: 一室一厅
A102: 100 | B102: 阳光小镇 | C102: 4# | D102: 10404 | E102: 44.17 | F102: 一室一厅
A103: 101 | B103: 阳光小镇 | C103: 4# | D103: 10501 | E103: 45.22 | F103: 一室一厅
A104: 102 | B104: 阳光小镇 | C104: 4# | D104: 10503 | E104: 49.93 | F104: 一室一厅
A105: 103 | B105: 阳光小镇 | C105: 4# | D105: 10504 | E105: 44.17 | F105: 一室一厅
A106: 104 | B106: 阳光小镇 | C106: 4# | D106: 10601 | E106: 45.22 | F106: 一室一厅
A107: 105 | B107: 阳光小镇 | C107: 4# | D107: 10602 | E107: 49.93 | F107: 一室一厅
A108: 106 | B108: 阳光小镇 | C108: 4# | D108: 10603 | E108: 49.93 | F108: 一室一厅
A109: 107 | B109: 阳光小镇 | C109: 4# | D109: 10604 | E109: 44.17 | F109: 一室一厅
A110: 108 | B110: 阳光小镇 | C110: 4# | D110: 20101 | E110: 44.17 | F110: 一室一厅
A111: 109 | B111: 阳光小镇 | C111: 4# | D111: 20102 | E111: 49.93 | F111: 一室一厅
A112: 110 | B112: 阳光小镇 | C112: 4# | D112: 20103 | E112: 49.93 | F112: 一室一厅
A113: 111 | B113: 阳光小镇 | C113: 4# | D113: 20104 | E113: 44.17 | F113: 一室一厅
A114: 112 | B114: 阳光小镇 | C114: 4# | D114: 20201 | E114: 44.17 | F114: 一室一厅
A115: 113 | B115: 阳光小镇 | C115: 4# | D115: 20202 | E115: 49.93 | F115: 一室一厅
A116: 114 | B116: 阳光小镇 | C116: 4# | D116: 20203 | E116: 49.93 | F116: 一室一厅
A117: 115 | B117: 阳光小镇 | C117: 4# | D117: 20204 | E117: 44.17 | F117: 一室一厅
A118: 116 | B118: 阳光小镇 | C118: 4# | D118: 20301 | E118: 44.17 | F118: 一室一厅
A119: 117 | B119: 阳光小镇 | C119: 4# | D119: 20302 | E119: 49.93 | F119: 一室一厅
A120: 118 | B120: 阳光小镇 | C120: 4# | D120: 20303 | E120: 49.93 | F120: 一室一厅
A121: 119 | B121: 阳光小镇 | C121: 4# | D121: 20304 | E121: 44.17 | F121: 一室一厅
A122: 120 | B122: 阳光小镇 | C122: 4# | D122: 20401 | E122: 44.17 | F122: 一室一厅
A123: 121 | B123: 阳光小镇 | C123: 4# | D123: 20402 | E123: 49.93 | F123: 一室一厅
A124: 122 | B124: 阳光小镇 | C124: 4# | D124: 20403 | E124: 49.93 | F124: 一室一厅
A125: 123 | B125: 阳光小镇 | C125: 4# | D125: 20404 | E125: 44.17 | F125: 一室一厅
A126: 124 | B126: 阳光小镇 | C126: 4# | D126: 20501 | E126: 44.17 | F126: 一室一厅
A127: 125 | B127: 阳光小镇 | C127: 4# | D127: 20502 | E127: 49.93 | F127: 一室一厅
A128: 126 | B128: 阳光小镇 | C128: 4# | D128: 20503 | E128: 49.93 | F128: 一室一厅
A129: 127 | B129: 阳光小镇 | C129: 4# | D129: 20504 | E129: 44.17 | F129: 一室一厅
A130: 128 | B130: 阳光小镇 | C130: 4# | D130: 20601 | E130: 44.17 | F130: 一室一厅
A131: 129 | B131: 阳光小镇 | C131: 4# | D131: 20602 | E131: 49.93 | F131: 一室一厅
A132: 130 | B132: 阳光小镇 | C132: 4# | D132: 20603 | E132: 49.93 | F132: 一室一厅
A133: 131 | B133: 阳光小镇 | C133: 4# | D133: 20604 | E133: 44.17 | F133: 一室一厅
A134: 132 | B134: 阳光小镇 | C134: 4# | D134: 30101 | E134: 44.17 | F134: 一室一厅
A135: 133 | B135: 阳光小镇 | C135: 4# | D135: 30104 | E135: 45.22 | F135: 一室一厅
A136: 134 | B136: 阳光小镇 | C136: 4# | D136: 30201 | E136: 44.17 | F136: 一室一厅
A137: 135 | B137: 阳光小镇 | C137: 4# | D137: 30202 | E137: 49.93 | F137: 一室一厅
A138: 136 | B138: 阳光小镇 | C138: 4# | D138: 30203 | E138: 49.93 | F138: 一室一厅
A139: 137 | B139: 阳光小镇 | C139: 4# | D139: 30204 | E139: 45.22 | F139: 一室一厅
A140: 138 | B140: 阳光小镇 | C140: 4# | D140: 30301 | E140: 44.17 | F140: 一室一厅
A141: 139 | B141: 阳光小镇 | C141: 4# | D141: 30302 | E141: 49.93 | F141: 一室一厅
A142: 140 | B142: 阳光小镇 | C142: 4# | D142: 30303 | E142: 49.93 | F142: 一室一厅
A143: 141 | B143: 阳光小镇 | C143: 4# | D143: 30304 | E143: 45.22 | F143: 一室一厅
A144: 142 | B144: 阳光小镇 | C144: 4# | D144: 30401 | E144: 44.17 | F144: 一室一厅
A145: 143 | B145: 阳光小镇 | C145: 4# | D145: 30402 | E145: 49.93 | F145: 一室一厅
A146: 144 | B146: 阳光小镇 | C146: 4# | D146: 30403 | E146: 49.93 | F146: 一室一厅
A147: 145 | B147: 阳光小镇 | C147: 4# | D147: 30404 | E147: 45.22 | F147: 一室一厅
A148: 146 | B148: 阳光小镇 | C148: 4# | D148: 30501 | E148: 44.17 | F148: 一室一厅
A149: 147 | B149: 阳光小镇 | C149: 4# | D149: 30503 | E149: 49.93 | F149: 一室一厅
A150: 148 | B150: 阳光小镇 | C150: 4# | D150: 30504 | E150: 45.22 | F150: 一室一厅
A151: 149 | B151: 阳光小镇 | C151: 4# | D151: 30601 | E151: 44.17 | F151: 一室一厅
A152: 150 | B152: 阳光小镇 | C152: 4# | D152: 30603 | E152: 49.93 | F152: 一室一厅
A153: 151 | B153: 阳光小镇 | C153: 4# | D153: 30604 | E153: 45.22 | F153: 一室一厅
A154: 152 | B154: 阳光小镇 | C154: 5# | D154: 10202 | E154: 50.33 | F154: 两室一厅
A155: 153 | B155: 阳光小镇 | C155: 5# | D155: 10203 | E155: 50.33 | F155: 两室一厅
A156: 154 | B156: 阳光小镇 | C156: 5# | D156: 10301 | E156: 49.96 | F156: 两室一厅
A157: 155 | B157: 阳光小镇 | C157: 5# | D157: 10304 | E157: 49.96 | F157: 两室一厅
A158: 156 | B158: 阳光小镇 | C158: 5# | D158: 10402 | E158: 50.33 | F158: 两室一厅
A159: 157 | B159: 阳光小镇 | C159: 5# | D159: 10501 | E159: 49.96 | F159: 两室一厅
A160: 158 | B160: 阳光小镇 | C160: 5# | D160: 10502 | E160: 50.33 | F160: 两室一厅
A161: 159 | B161: 阳光小镇 | C161: 5# | D161: 10503 | E161: 50.33 | F161: 两室一厅
A162: 160 | B162: 阳光小镇 | C162: 5# | D162: 10504 | E162: 49.96 | F162: 两室一厅
A163: 161 | B163: 阳光小镇 | C163: 5# | D163: 10602 | E163: 50.33 | F163: 两室一厅
A164: 162 | B164: 阳光小镇 | C164: 5# | D164: 10603 | E164: 50.33 | F164: 两室一厅
A165: 163 | B165: 阳光小镇 | C165: 5# | D165: 20302 | E165: 50.33 | F165: 两室一厅
A166: 164 | B166: 阳光小镇 | C166: 5# | D166: 20303 | E166: 50.33 | F166: 两室一厅
A167: 165 | B167: 阳光小镇 | C167: 5# | D167: 20401 | E167: 49.96 | F167: 两室一厅
A168: 166 | B168: 阳光小镇 | C168: 5# | D168: 20503 | E168: 50.33 | F168: 两室一厅
A169: 167 | B169: 阳光小镇 | C169: 5# | D169: 20504 | E169: 49.96 | F169: 两室一厅
A170: 168 | B170: 阳光小镇 | C170: 5# | D170: 20601 | E170: 49.96 | F170: 两室一厅
A171: 169 | B171: 阳光小镇 | C171: 5# | D171: 20602 | E171: 50.33 | F171: 两室一厅
A172: 170 | B172: 阳光小镇 | C172: 6# | D172: 10102 | E172: 50.33 | F172: 两室一厅
A173: 171 | B173: 阳光小镇 | C173: 6# | D173: 10104 | E173: 49.96 | F173: 两室一厅
A174: 172 | B174: 阳光小镇 | C174: 6# | D174: 10202 | E174: 50.33 | F174: 两室一厅
A175: 173 | B175: 阳光小镇 | C175: 6# | D175: 10304 | E175: 49.96 | F175: 两室一厅
A176: 174 | B176: 阳光小镇 | C176: 6# | D176: 10403 | E176: 50.33 | F176: 两室一厅
A177: 175 | B177: 阳光小镇 | C177: 6# | D177: 10501 | E177: 49.96 | F177: 两室一厅
A178: 176 | B178: 阳光小镇 | C178: 6# | D178: 10504 | E178: 49.96 | F178: 两室一厅
A179: 177 | B179: 阳光小镇 | C179: 6# | D179: 10601 | E179: 49.96 | F179: 两室一厅
A180: 178 | B180: 阳光小镇 | C180: 6# | D180: 10602 | E180: 50.33 | F180: 两室一厅
A181: 179 | B181: 阳光小镇 | C181: 6# | D181: 10603 | E181: 50.33 | F181: 两室一厅
A182: 180 | B182: 阳光小镇 | C182: 6# | D182: 10604 | E182: 49.96 | F182: 两室一厅
A183: 181 | B183: 阳光小镇 | C183: 6# | D183: 20102 | E183: 50.33 | F183: 两室一厅
A184: 182 | B184: 阳光小镇 | C184: 6# | D184: 20103 | E184: 50.33 | F184: 两室一厅
A185: 183 | B185: 阳光小镇 | C185: 6# | D185: 20104 | E185: 49.96 | F185: 两室一厅
A186: 184 | B186: 阳光小镇 | C186: 6# | D186: 20203 | E186: 50.33 | F186: 两室一厅
A187: 185 | B187: 阳光小镇 | C187: 6# | D187: 20304 | E187: 49.96 | F187: 两室一厅
A188: 186 | B188: 阳光小镇 | C188: 6# | D188: 20402 | E188: 50.33 | F188: 两室一厅
A189: 187 | B189: 阳光小镇 | C189: 6# | D189: 20403 | E189: 50.33 | F189: 两室一厅
A190: 188 | B190: 阳光小镇 | C190: 6# | D190: 20404 | E190: 49.96 | F190: 两室一厅
A191: 189 | B191: 阳光小镇 | C191: 6# | D191: 20601 | E191: 49.96 | F191: 两室一厅
A192: 190 | B192: 阳光小镇 | C192: 6# | D192: 20602 | E192: 50.33 | F192: 两室一厅
A193: 191 | B193: 阳光小镇 | C193: 6# | D193: 20603 | E193: 50.33 | F193: 两室一厅
A194: 192 | B194: 阳光小镇 | C194: 7# | D194: 10101 | E194: 45.22 | F194: 一室一厅
A195: 193 | B195: 阳光小镇 | C195: 7# | D195: 10102 | E195: 49.93 | F195: 一室一厅
A196: 194 | B196: 阳光小镇 | C196: 7# | D196: 10103 | E196: 49.93 | F196: 一室一厅
A197: 195 | B197: 阳光小镇 | C197: 7# | D197: 10104 | E197: 44.17 | F197: 一室一厅
A198: 196 | B198: 阳光小镇 | C198: 7# | D198: 10201 | E198: 45.22 | F198: 一室一厅
A199: 197 | B199: 阳光小镇 | C199: 7# | D199: 10202 | E199: 49.93 | F199: 一室一厅
A200: 198 | B200: 阳光小镇 | C200: 7# | D200: 10203 | E200: 49.93 | F200: 一室一厅
... 191 more rows

Sheet Sheet2
A1: 1 | B1: 阳光小镇 | C1: 1# | D1: 10102 | E1: 50.33 | F1: 全空置 | H1: 12.56 | I1: 29.95 | J1: 29.95 | K1: 29.95 | L1: =K1+J1+I1+H1 -> 102.40
A2: 2 | B2: 阳光小镇 | C2: 1# | D2: 10201 | E2: 49.96 | F2: 全空置 | H2: 12.88 | I2: 29.73 | J2: 29.73 | K2: 29.73 | L2: =K2+J2+I2+H2 -> 102.06
A3: 3 | B3: 阳光小镇 | C3: 1# | D3: 10202 | E3: 50.33 | F3: 全空置 | H3: 12.56 | I3: 29.95 | J3: 29.95 | K3: 29.95 | L3: 102.40
A4: 4 | B4: 阳光小镇 | C4: 1# | D4: 10203 | E4: 50.33 | F4: 全空置 | H4: 12.56 | I4: 29.95 | J4: 29.95 | K4: 29.95 | L4: 102.40
A5: 5 | B5: 阳光小镇 | C5: 1# | D5: 10204 | E5: 49.96 | F5: 全空置 | H5: 12.88 | I5: 29.73 | J5: 29.73 | K5: 29.73 | L5: 102.06
A6: 6 | B6: 阳光小镇 | C6: 1# | D6: 10301 | E6: 49.96 | F6: 全空置 | H6: 12.88 | I6: 29.73 | J6: 29.73 | K6: 29.73 | L6: 102.06
A7: 7 | B7: 阳光小镇 | C7: 1# | D7: 10302 | E7: 50.33 | F7: 全空置 | H7: 12.56 | I7: 29.95 | J7: 29.95 | K7: 29.95 | L7: 102.40
A8: 8 | B8: 阳光小镇 | C8: 1# | D8: 10303 | E8: 50.33 | F8: 全空置 | H8: 12.56 | I8: 29.95 | J8: 29.95 | K8: 29.95 | L8: 102.40
A9: 9 | B9: 阳光小镇 | C9: 1# | D9: 10304 | E9: 49.96 | F9: 全空置 | H9: 12.88 | I9: 29.73 | J9: 29.73 | K9: 29.73 | L9: 102.06
A10: 10 | B10: 阳光小镇 | C10: 1# | D10: 10401 | E10: 49.96 | F10: 全空置 | H10: 12.88 | I10: 29.73 | J10: 29.73 | K10: 29.73 | L10: 102.06
A11: 11 | B11: 阳光小镇 | C11: 1# | D11: 10402 | E11: 50.33 | F11: 全空置 | H11: 12.56 | I11: 29.95 | J11: 29.95 | K11: 29.95 | L11: 102.40
A12: 12 | B12: 阳光小镇 | C12: 1# | D12: 10403 | E12: 50.33 | F12: 全空置 | H12: 12.56 | I12: 29.95 | J12: 29.95 | K12: 29.95 | L12: 102.40
A13: 13 | B13: 阳光小镇 | C13: 1# | D13: 10404 | E13: 49.96 | F13: 全空置 | H13: 12.88 | I13: 29.73 | J13: 29.73 | K13: 29.73 | L13: 102.06
A14: 14 | B14: 阳光小镇 | C14: 1# | D14: 10501 | E14: 49.96 | F14: 全空置 | H14: 12.88 | I14: 29.73 | J14: 29.73 | K14: 29.73 | L14: 102.06
A15: 15 | B15: 阳光小镇 | C15: 1# | D15: 10502 | E15: 50.33 | F15: 全空置 | H15: 12.56 | I15: 29.95 | J15: 29.95 | K15: 29.95 | L15: 102.40
A16: 16 | B16: 阳光小镇 | C16: 1# | D16: 10503 | E16: 50.33 | F16: 全空置 | H16: 12.56 | I16: 29.95 | J16: 29.95 | K16: 29.95 | L16: 102.40
A17: 17 | B17: 阳光小镇 | C17: 1# | D17: 10504 | E17: 49.96 | F17: 全空置 | H17: 12.88 | I17: 29.73 | J17: 29.73 | K17: 29.73 | L17: 102.06
A18: 18 | B18: 阳光小镇 | C18: 1# | D18: 10601 | E18: 49.96 | F18: 全空置 | H18: 12.88 | I18: 29.73 | J18: 29.73 | K18: 29.73 | L18: 102.06
A19: 19 | B19: 阳光小镇 | C19: 1# | D19: 10602 | E19: 50.33 | F19: 全空置 | H19: 12.56 | I19: 29.95 | J19: 29.95 | K19: 29.95 | L19: 102.40
A20: 20 | B20: 阳光小镇 | C20: 1# | D20: 10603 | E20: 50.33 | F20: 全空置 | H20: 12.56 | I20: 29.95 | J20: 29.95 | K20: 29.95 | L20: 102.40
A21: 21 | B21: 阳光小镇 | C21: 1# | D21: 10604 | E21: 49.96 | F21: 全空置 | H21: 12.88 | I21: 29.73 | J21: 29.73 | K21: 29.73 | L21: 102.06
A22: 22 | B22: 阳光小镇 | C22: 1# | D22: 20101 | E22: 50.33 | F22: 全空置 | H22: 12.56 | I22: 29.95 | J22: 29.95 | K22: 29.95 | L22: 102.40
A23: 23 | B23: 阳光小镇 | C23: 1# | D23: 20201 | E23: 49.96 | F23: 全空置 | H23: 12.88 | I23: 29.73 | J23: 29.73 | K23: 29.73 | L23: 102.06
A24: 24 | B24: 阳光小镇 | C24: 1# | D24: 20202 | E24: 50.33 | F24: 全空置 | H24: 12.56 | I24: 29.95 | J24: 29.95 | K24: 29.95 | L24: 102.40
A25: 25 | B25: 阳光小镇 | C25: 1# | D25: 20203 | E25: 50.33 | F25: 全空置 | H25: 12.56 | I25: 29.95 | J25: 29.95 | K25: 29.95 | L25: 102.40
A26: 26 | B26: 阳光小镇 | C26: 1# | D26: 20204 | E26: 49.96 | F26: 全空置 | H26: 12.88 | I26: 29.73 | J26: 29.73 | K26: 29.73 | L26: 102.06
A27: 27 | B27: 阳光小镇 | C27: 1# | D27: 20301 | E27: 49.96 | F27: 全空置 | H27: 12.88 | I27: 29.73 | J27: 29.73 | K27: 29.73 | L27: 102.06
A28: 28 | B28: 阳光小镇 | C28: 1# | D28: 20302 | E28: 50.33 | F28: 全空置 | H28: 12.56 | I28: 29.95 | J28: 29.95 | K28: 29.95 | L28: 102.40
A29: 29 | B29: 阳光小镇 | C29: 1# | D29: 20303 | E29: 50.33 | F29: 全空置 | H29: 12.56 | I29: 29.95 | J29: 29.95 | K29: 29.95 | L29: 102.40
A30: 30 | B30: 阳光小镇 | C30: 1# | D30: 20304 | E30: 49.96 | F30: 全空置 | H30: 12.88 | I30: 29.73 | J30: 29.73 | K30: 29.73 | L30: 102.06
A31: 31 | B31: 阳光小镇 | C31: 1# | D31: 20401 | E31: 49.96 | F31: 全空置 | H31: 12.88 | I31: 29.73 | J31: 29.73 | K31: 29.73 | L31: 102.06
A32: 32 | B32: 阳光小镇 | C32: 1# | D32: 20402 | E32: 50.33 | F32: 全空置 | H32: 12.56 | I32: 29.95 | J32: 29.95 | K32: 29.95 | L32: 102.40
A33: 33 | B33: 阳光小镇 | C33: 1# | D33: 20403 | E33: 50.33 | F33: 全空置 | H33: 12.56 | I33: 29.95 | J33: 29.95 | K33: 29.95 | L33: 102.40
A34: 34 | B34: 阳光小镇 | C34: 1# | D34: 20404 | E34: 49.96 | F34: 全空置 | H34: 12.88 | I34: 29.73 | J34: 29.73 | K34: 29.73 | L34: 102.06
A35: 35 | B35: 阳光小镇 | C35: 1# | D35: 20501 | E35: 49.96 | F35: 全空置 | H35: 12.88 | I35: 29.73 | J35: 29.73 | K35: 29.73 | L35: 102.06
A36: 36 | B36: 阳光小镇 | C36: 1# | D36: 20502 | E36: 50.33 | F36: 全空置 | H36: 12.56 | I36: 29.95 | J36: 29.95 | K36: 29.95 | L36: 102.40
A37: 37 | B37: 阳光小镇 | C37: 1# | D37: 20503 | E37: 50.33 | F37: 全空置 | H37: 12.56 | I37: 29.95 | J37: 29.95 | K37: 29.95 | L37: 102.40
A38: 38 | B38: 阳光小镇 | C38: 1# | D38: 20504 | E38: 49.96 | F38: 全空置 | H38: 12.88 | I38: 29.73 | J38: 29.73 | K38: 29.73 | L38: 102.06
A39: 39 | B39: 阳光小镇 | C39: 1# | D39: 20601 | E39: 49.96 | F39: 全空置 | H39: 12.88 | I39: 29.73 | J39: 29.73 | K39: 29.73 | L39: 102.06
A40: 40 | B40: 阳光小镇 | C40: 1# | D40: 20602 | E40: 50.33 | F40: 全空置 | H40: 12.56 | I40: 29.95 | J40: 29.95 | K40: 29.95 | L40: 102.40
A41: 41 | B41: 阳光小镇 | C41: 1# | D41: 20603 | E41: 50.33 | F41: 全空置 | H41: 12.56 | I41: 29.95 | J41: 29.95 | K41: 29.95 | L41: 102.40
A42: 42 | B42: 阳光小镇 | C42: 1# | D42: 20604 | E42: 49.96 | F42: 全空置 | H42: 12.88 | I42: 29.73 | J42: 29.73 | K42: 29.73 | L42: 102.06
A43: 43 | B43: 阳光小镇 | C43: 2# | D43: 10101 | E43: 50.33 | F43: 全空置 | H43: 12.56 | I43: 29.95 | J43: 29.95 | K43: 29.95 | L43: 102.40
A44: 44 | B44: 阳光小镇 | C44: 2# | D44: 10201 | E44: 49.96 | F44: 全空置 | H44: 12.88 | I44: 29.73 | J44: 29.73 | K44: 29.73 | L44: 102.06
A45: 45 | B45: 阳光小镇 | C45: 2# | D45: 10202 | E45: 50.33 | F45: 全空置 | H45: 12.56 | I45: 29.95 | J45: 29.95 | K45: 29.95 | L45: 102.40
A46: 46 | B46: 阳光小镇 | C46: 2# | D46: 10203 | E46: 50.33 | F46: 全空置 | H46: 12.56 | I46: 29.95 | J46: 29.95 | K46: 29.95 | L46: 102.40
A47: 47 | B47: 阳光小镇 | C47: 2# | D47: 10204 | E47: 49.96 | F47: 全空置 | H47: 12.88 | I47: 29.73 | J47: 29.73 | K47: 29.73 | L47: 102.06
A48: 50 | B48: 阳光小镇 | C48: 2# | D48: 10303 | E48: 50.33 | F48: 全空置 | H48: 12.56 | I48: 29.95 | J48: 29.95 | K48: 29.95 | L48: 102.40
A49: 52 | B49: 阳光小镇 | C49: 2# | D49: 10401 | E49: 49.96 | F49: 全空置 | H49: 12.88 | I49: 29.73 | J49: 29.73 | K49: 29.73 | L49: 102.06
A50: 53 | B50: 阳光小镇 | C50: 2# | D50: 10402 | E50: 50.33 | F50: 全空置 | H50: 12.56 | I50: 29.95 | J50: 29.95 | K50: 29.95 | L50: 102.40
A51: 54 | B51: 阳光小镇 | C51: 2# | D51: 10403 | E51: 50.33 | F51: 全空置 | H51: 12.56 | I51: 29.95 | J51: 29.95 | K51: 29.95 | L51: 102.40
A52: 56 | B52: 阳光小镇 | C52: 2# | D52: 10501 | E52: 49.96 | F52: 全空置 | H52: 12.88 | I52: 29.73 | J52: 29.73 | K52: 29.73 | L52: 102.06
A53: 57 | B53: 阳光小镇 | C53: 2# | D53: 10502 | E53: 50.33 | F53: 全空置 | H53: 12.56 | I53: 29.95 | J53: 29.95 | K53: 29.95 | L53: 102.40
A54: 58 | B54: 阳光小镇 | C54: 2# | D54: 10503 | E54: 50.33 | F54: 全空置 | H54: 12.56 | I54: 29.95 | J54: 29.95 | K54: 29.95 | L54: 102.40
A55: 59 | B55: 阳光小镇 | C55: 2# | D55: 10504 | E55: 49.96 | F55: 全空置 | H55: 12.88 | I55: 29.73 | J55: 29.73 | K55: 29.73 | L55: 102.06
A56: 60 | B56: 阳光小镇 | C56: 2# | D56: 10601 | E56: 49.96 | F56: 全空置 | H56: 12.88 | I56: 29.73 | J56: 29.73 | K56: 29.73 | L56: 102.06
A57: 61 | B57: 阳光小镇 | C57: 2# | D57: 10602 | E57: 50.33 | F57: 全空置 | H57: 12.56 | I57: 29.95 | J57: 29.95 | K57: 29.95 | L57: 102.40
A58: 62 | B58: 阳光小镇 | C58: 2# | D58: 10603 | E58: 50.33 | F58: 全空置 | H58: 12.56 | I58: 29.95 | J58: 29.95 | K58: 29.95 | L58: 102.40
A59: 63 | B59: 阳光小镇 | C59: 2# | D59: 10604 | E59: 49.96 | F59: 全空置 | H59: 12.88 | I59: 29.73 | J59: 29.73 | K59: 29.73 | L59: 102.06
A60: 65 | B60: 阳光小镇 | C60: 2# | D60: 20201 | E60: 49.96 | F60: 全空置 | H60: 12.88 | I60: 29.73 | J60: 29.73 | K60: 29.73 | L60: 102.06
A61: 66 | B61: 阳光小镇 | C61: 2# | D61: 20202 | E61: 50.33 | F61: 全空置 | H61: 12.56 | I61: 29.95 | J61: 29.95 | K61: 29.95 | L61: 102.40
A62: 68 | B62: 阳光小镇 | C62: 2# | D62: 20204 | E62: 49.96 | F62: 全空置 | H62: 0.00 | I62: 0.00 | J62: 0.00 | K62: 13.42 | L62: 13.42
A63: 69 | B63: 阳光小镇 | C63: 2# | D63: 20301 | E63: 49.96 | F63: 全空置 | H63: 12.88 | I63: 29.73 | J63: 29.73 | K63: 29.73 | L63: 102.06
A64: 70 | B64: 阳光小镇 | C64: 2# | D64: 20302 | E64: 50.33 | F64: 全空置 | H64: 0.00 | I64: 29.95 | J64: 29.95 | K64: 29.95 | L64: 89.84
A65: 71 | B65: 阳光小镇 | C65: 2# | D65: 20303 | E65: 50.33 | F65: 全空置 | H65: 12.56 | I65: 29.95 | J65: 29.95 | K65: 29.95 | L65: 102.40
A66: 77 | B66: 阳光小镇 | C66: 2# | D66: 20501 | E66: 49.96 | F66: 全空置 | H66: 0.00 | I66: 0.00 | J66: 0.00 | K66: 0.00 | L66: =K66+J66+I66+H66 -> 0.00
A67: 78 | B67: 阳光小镇 | C67: 2# | D67: 20502 | E67: 50.33 | F67: 全空置 | H67: 0.00 | I67: 0.00 | J67: 0.00 | K67: 0.00 | L67: 0.00
A68: 79 | B68: 阳光小镇 | C68: 2# | D68: 20503 | E68: 50.33 | F68: 全空置 | H68: 0.00 | I68: 0.00 | J68: 0.00 | K68: 0.00 | L68: 0.00
A69: 81 | B69: 阳光小镇 | C69: 2# | D69: 20601 | E69: 49.96 | F69: 全空置 | H69: 12.88 | I69: 29.73 | J69: 29.73 | K69: 29.73 | L69: 102.06
A70: 82 | B70: 阳光小镇 | C70: 2# | D70: 20602 | E70: 50.33 | F70: 全空置 | H70: 12.56 | I70: 29.95 | J70: 29.95 | K70: 29.95 | L70: 102.40
A71: 92 | B71: 阳光小镇 | C71: 3# | D71: 10303 | E71: 50.33 | F71: 全空置 | H71: 0.00 | I71: 29.95 | J71: 29.95 | K71: 29.95 | L71: 89.84
A72: 93 | B72: 阳光小镇 | C72: 3# | D72: 10304 | E72: 49.96 | F72: 全空置 | H72: 0.00 | I72: 29.73 | J72: 29.73 | K72: 29.73 | L72: 89.18
A73: 99 | B73: 阳光小镇 | C73: 3# | D73: 10502 | E73: 50.33 | F73: 全空置 | H73: 12.56 | I73: 29.95 | J73: 29.95 | K73: 29.95 | L73: 102.40
A74: 102 | B74: 阳光小镇 | C74: 3# | D74: 10601 | E74: 49.96 | F74: 全空置 | H74: 12.88 | I74: 29.73 | J74: 29.73 | K74: 29.73 | L74: 102.06
A75: 103 | B75: 阳光小镇 | C75: 3# | D75: 10602 | E75: 50.33 | F75: 全空置 | H75: 12.56 | I75: 29.95 | J75: 29.95 | K75: 29.95 | L75: 102.40
A76: 104 | B76: 阳光小镇 | C76: 3# | D76: 10603 | E76: 50.33 | F76: 全空置 | H76: 12.56 | I76: 29.95 | J76: 29.95 | K76: 29.95 | L76: 102.40
A77: 127 | B77: 阳光小镇 | C77: 4# | D77: 10101 | E77: 45.22 | F77: 全空置 | H77: 11.28 | I77: 26.91 | J77: 26.91 | K77: 26.91 | L77: 92.00
A78: 128 | B78: 阳光小镇 | C78: 4# | D78: 10102 | E78: 49.93 | F78: 全空置 | H78: 12.46 | I78: 29.71 | J78: 29.71 | K78: 29.71 | L78: 101.58
A79: 129 | B79: 阳光小镇 | C79: 4# | D79: 10103 | E79: 49.93 | F79: 全空置 | H79: 12.46 | I79: 29.71 | J79: 29.71 | K79: 29.71 | L79: 101.58
A80: 130 | B80: 阳光小镇 | C80: 4# | D80: 10104 | E80: 44.17 | F80: 全空置 | H80: 11.02 | I80: 26.28 | J80: 26.28 | K80: 26.28 | L80: 89.86
A81: 132 | B81: 阳光小镇 | C81: 4# | D81: 10202 | E81: 49.93 | F81: 全空置 | H81: 12.46 | I81: 29.71 | J81: 29.71 | K81: 29.71 | L81: 101.58
A82: 133 | B82: 阳光小镇 | C82: 4# | D82: 10203 | E82: 49.93 | F82: 全空置 | H82: 12.46 | I82: 29.71 | J82: 29.71 | K82: 29.71 | L82: 101.58
A83: 134 | B83: 阳光小镇 | C83: 4# | D83: 10204 | E83: 44.17 | F83: 全空置 | H83: 11.02 | I83: 26.28 | J83: 26.28 | K83: 26.28 | L83: 89.86
A84: 135 | B84: 阳光小镇 | C84: 4# | D84: 10301 | E84: 45.22 | F84: 全空置 | H84: 0.00 | I84: 0.00 | J84: 4.48 | K84: 26.91 | L84: 31.39
A85: 137 | B85: 阳光小镇 | C85: 4# | D85: 10303 | E85: 49.93 | F85: 全空置 | H85: 12.46 | I85: 29.71 | J85: 29.71 | K85: 29.71 | L85: 101.58
A86: 140 | B86: 阳光小镇 | C86: 4# | D86: 10402 | E86: 49.93 | F86: 全空置 | H86: 0.00 | I86: 0.00 | J86: 0.00 | K86: 0.00 | L86: 0.00
A87: 142 | B87: 阳光小镇 | C87: 4# | D87: 10404 | E87: 44.17 | F87: 全空置 | H87: 0.00 | I87: 0.00 | J87: 4.48 | K87: 26.28 | L87: 30.76
A88: 145 | B88: 阳光小镇 | C88: 4# | D88: 10503 | E88: 49.93 | F88: 全空置 | H88: 12.46 | I88: 29.71 | J88: 29.71 | K88: 29.71 | L88: 101.58
A89: 146 | B89: 阳光小镇 | C89: 4# | D89: 10504 | E89: 44.17 | F89: 全空置 | H89: 0.00 | I89: 0.00 | J89: 0.00 | K89: 0.00 | L89: 0.00
A90: 147 | B90: 阳光小镇 | C90: 4# | D90: 10601 | E90: 45.22 | F90: 全空置 | H90: 11.28 | I90: 26.91 | J90: 26.91 | K90: 26.91 | L90: 92.00
A91: 148 | B91: 阳光小镇 | C91: 4# | D91: 10602 | E91: 49.93 | F91: 全空置 | H91: 12.46 | I91: 29.71 | J91: 29.71 | K91: 29.71 | L91: 101.58
A92: 149 | B92: 阳光小镇 | C92: 4# | D92: 10603 | E92: 49.93 | F92: 全空置 | H92: 12.46 | I92: 29.71 | J92: 29.71 | K92: 29.71 | L92: 101.58
A93: 150 | B93: 阳光小镇 | C93: 4# | D93: 10604 | E93: 44.17 | F93: 全空置 | H93: 11.02 | I93: 26.28 | J93: 26.28 | K93: 26.28 | L93: 89.86
A94: 151 | B94: 阳光小镇 | C94: 4# | D94: 20101 | E94: 44.17 | F94: 全空置 | H94: 11.02 | I94: 26.28 | J94: 26.28 | K94: 26.28 | L94: 89.86
A95: 152 | B95: 阳光小镇 | C95: 4# | D95: 20102 | E95: 49.93 | F95: 全空置 | H95: 12.46 | I95: 29.71 | J95: 29.71 | K95: 29.71 | L95: 101.58
A96: 153 | B96: 阳光小镇 | C96: 4# | D96: 20103 | E96: 49.93 | F96: 全空置 | H96: 12.46 | I96: 29.71 | J96: 29.71 | K96: 29.71 | L96: 101.58
A97: 154 | B97: 阳光小镇 | C97: 4# | D97: 20104 | E97: 44.17 | F97: 全空置 | H97: 11.02 | I97: 26.28 | J97: 26.28 | K97: 26.28 | L97: 89.86
A98: 155 | B98: 阳光小镇 | C98: 4# | D98: 20201 | E98: 44.17 | F98: 全空置 | H98: 11.02 | I98: 26.28 | J98: 26.28 | K98: 26.28 | L98: 89.86
A99: 156 | B99: 阳光小镇 | C99: 4# | D99: 20202 | E99: 49.93 | F99: 全空置 | H99: 12.46 | I99: 29.71 | J99: 29.71 | K99: 29.71 | L99: 101.58
A100: 157 | B100: 阳光小镇 | C100: 4# | D100: 20203 | E100: 49.93 | F100: 全空置 | H100: 12.46 | I100: 29.71 | J100: 29.71 | K100: 29.71 | L100: 101.58
A101: 158 | B101: 阳光小镇 | C101: 4# | D101: 20204 | E101: 44.17 | F101: 全空置 | H101: 11.02 | I101: 26.28 | J101: 26.28 | K101: 26.28 | L101: 89.86
A102: 159 | B102: 阳光小镇 | C102: 4# | D102: 20301 | E102: 44.17 | F102: 全空置 | H102: 11.02 | I102: 26.28 | J102: 26.28 | K102: 26.28 | L102: 89.86
A103: 160 | B103: 阳光小镇 | C103: 4# | D103: 20302 | E103: 49.93 | F103: 全空置 | H103: 12.46 | I103: 29.71 | J103: 29.71 | K103: 29.71 | L103: 101.58
A104: 161 | B104: 阳光小镇 | C104: 4# | D104: 20303 | E104: 49.93 | F104: 全空置 | H104: 12.46 | I104: 29.71 | J104: 29.71 | K104: 29.71 | L104: 101.58
A105: 162 | B105: 阳光小镇 | C105: 4# | D105: 20304 | E105: 44.17 | F105: 全空置 | H105: 11.02 | I105: 26.28 | J105: 26.28 | K105: 26.28 | L105: 89.86
A106: 163 | B106: 阳光小镇 | C106: 4# | D106: 20401 | E106: 44.17 | F106: 全空置 | H106: 11.02 | I106: 26.28 | J106: 26.28 | K106: 26.28 | L106: 89.86
A107: 164 | B107: 阳光小镇 | C107: 4# | D107: 20402 | E107: 49.93 | F107: 全空置 | H107: 12.46 | I107: 29.71 | J107: 29.71 | K107: 29.71 | L107: 101.58
A108: 165 | B108: 阳光小镇 | C108: 4# | D108: 20403 | E108: 49.93 | F108: 全空置 | H108: 12.46 | I108: 29.71 | J108: 29.71 | K108: 29.71 | L108: 101.58
A109: 166 | B109: 阳光小镇 | C109: 4# | D109: 20404 | E109: 44.17 | F109: 全空置 | H109: 11.02 | I109: 26.28 | J109: 26.28 | K109: 26.28 | L109: 89.86
A110: 167 | B110: 阳光小镇 | C110: 4# | D110: 20501 | E110: 44.17 | F110: 全空置 | H110: 11.02 | I110: 26.28 | J110: 26.28 | K110: 26.28 | L110: 89.86
A111: 168 | B111: 阳光小镇 | C111: 4# | D111: 20502 | E111: 49.93 | F111: 全空置 | H111: 12.46 | I111: 29.71 | J111: 29.71 | K111: 29.71 | L111: 101.58
A112: 169 | B112: 阳光小镇 | C112: 4# | D112: 20503 | E112: 49.93 | F112: 全空置 | H112: 12.46 | I112: 29.71 | J112: 29.71 | K112: 29.71 | L112: 101.58
A113: 170 | B113: 阳光小镇 | C113: 4# | D113: 20504 | E113: 44.17 | F113: 全空置 | H113: 11.02 | I113: 26.28 | J113: 26.28 | K113: 26.28 | L113: 89.86
A114: 171 | B114: 阳光小镇 | C114: 4# | D114: 20601 | E114: 44.17 | F114: 全空置 | H114: 11.02 | I114: 26.28 | J114: 26.28 | K114: 26.28 | L114: 89.86
A115: 172 | B115: 阳光小镇 | C115: 4# | D115: 20602 | E115: 49.93 | F115: 全空置 | H115: 12.46 | I115: 29.71 | J115: 29.71 | K115: 29.71 | L115: 101.58
A116: 173 | B116: 阳光小镇 | C116: 4# | D116: 20603 | E116: 49.93 | F116: 全空置 | H116: 12.46 | I116: 29.71 | J116: 29.71 | K116: 29.71 | L116: 101.58
A117: 174 | B117: 阳光小镇 | C117: 4# | D117: 20604 | E117: 44.17 | F117: 全空置 | H117: 11.02 | I117: 26.28 | J117: 26.28 | K117: 26.28 | L117: 89.86
A118: 175 | B118: 阳光小镇 | C118: 4# | D118: 30101 | E118: 44.17 | F118: 全空置 | H118: 11.02 | I118: 26.28 | J118: 26.28 | K118: 26.28 | L118: 89.86
A119: 178 | B119: 阳光小镇 | C119: 4# | D119: 30104 | E119: 45.22 | F119: 全空置 | H119: 11.28 | I119: 26.91 | J119: 26.91 | K119: 26.91 | L119: 92.00
A120: 183 | B120: 阳光小镇 | C120: 4# | D120: 30301 | E120: 44.17 | F120: 全空置 | H120: 11.02 | I120: 26.28 | J120: 26.28 | K120: 26.28 | L120: 89.86
A121: 184 | B121: 阳光小镇 | C121: 4# | D121: 30302 | E121: 49.93 | F121: 全空置 | H121: 12.46 | I121: 29.71 | J121: 29.71 | K121: 29.71 | L121: 101.58
A122: 185 | B122: 阳光小镇 | C122: 4# | D122: 30303 | E122: 49.93 | F122: 全空置 | H122: 12.46 | I122: 29.71 | J122: 29.71 | K122: 29.71 | L122: 101.58
A123: 186 | B123: 阳光小镇 | C123: 4# | D123: 30304 | E123: 45.22 | F123: 全空置 | H123: 0.00 | I123: 26.91 | J123: 26.91 | K123: 26.91 | L123: 80.72
A124: 187 | B124: 阳光小镇 | C124: 4# | D124: 30401 | E124: 44.17 | F124: 全空置 | H124: 11.02 | I124: 26.28 | J124: 26.28 | K124: 26.28 | L124: 89.86
A125: 188 | B125: 阳光小镇 | C125: 4# | D125: 30402 | E125: 49.93 | F125: 全空置 | H125: 12.46 | I125: 29.71 | J125: 29.71 | K125: 29.71 | L125: 101.58
A126: 189 | B126: 阳光小镇 | C126: 4# | D126: 30403 | E126: 49.93 | F126: 全空置 | H126: 0.00 | I126: 0.00 | J126: 0.00 | K126: 15.33 | L126: 15.33
A127: 190 | B127: 阳光小镇 | C127: 4# | D127: 30404 | E127: 45.22 | F127: 全空置 | H127: 0.00 | I127: 0.00 | J127: 0.00 | K127: 20.83 | L127: 20.83
A128: 191 | B128: 阳光小镇 | C128: 4# | D128: 30501 | E128: 44.17 | F128: 全空置 | H128: 11.02 | I128: 26.28 | J128: 26.28 | K128: 26.28 | L128: 89.86
A129: 193 | B129: 阳光小镇 | C129: 4# | D129: 30503 | E129: 49.93 | F129: 全空置 | H129: 12.46 | I129: 29.71 | J129: 29.71 | K129: 29.71 | L129: 101.58
A130: 194 | B130: 阳光小镇 | C130: 4# | D130: 30504 | E130: 45.22 | F130: 全空置 | H130: 11.28 | I130: 26.91 | J130: 26.91 | K130: 26.91 | L130: =K130+J130+I130+H130 -> 92.00
A131: 197 | B131: 阳光小镇 | C131: 4# | D131: 30603 | E131: 49.93 | F131: 全空置 | H131: 12.46 | I131: 29.71 | J131: 29.71 | K131: 29.71 | L131: 101.58
A132: 198 | B132: 阳光小镇 | C132: 4# | D132: 30604 | E132: 45.22 | F132: 全空置 | H132: 11.28 | I132: 26.91 | J132: 26.91 | K132: 26.91 | L132: 92.00
A133: 204 | B133: 阳光小镇 | C133: 5# | D133: 10202 | E133: 50.33 | F133: 全空置 | H133: 12.56 | I133: 29.95 | J133: 29.95 | K133: 29.95 | L133: 102.40
A134: 205 | B134: 阳光小镇 | C134: 5# | D134: 10203 | E134: 50.33 | F134: 全空置 | H134: 12.56 | I134: 29.95 | J134: 29.95 | K134: 29.95 | L134: 102.40
A135: 207 | B135: 阳光小镇 | C135: 5# | D135: 10301 | E135: 49.96 | F135: 全空置 | H135: 12.88 | I135: 29.73 | J135: 29.73 | K135: 29.73 | L135: 102.06
A136: 212 | B136: 阳光小镇 | C136: 5# | D136: 10402 | E136: 50.33 | F136: 全空置 | H136: 12.56 | I136: 29.95 | J136: 29.95 | K136: 29.95 | L136: 102.40
A137: 215 | B137: 阳光小镇 | C137: 5# | D137: 10501 | E137: 49.96 | F137: 全空置 | H137: 12.88 | I137: 29.73 | J137: 29.73 | K137: 29.73 | L137: 102.06
A138: 218 | B138: 阳光小镇 | C138: 5# | D138: 10504 | E138: 49.96 | F138: 全空置 | H138: 0.00 | I138: 7.67 | J138: 29.73 | K138: 29.73 | L138: 67.12
A139: 220 | B139: 阳光小镇 | C139: 5# | D139: 10602 | E139: 50.33 | F139: 全空置 | H139: 12.56 | I139: 29.95 | J139: 29.95 | K139: 29.95 | L139: 102.40
A140: 232 | B140: 阳光小镇 | C140: 5# | D140: 20302 | E140: 50.33 | F140: 全空置 | H140: 0.00 | I140: 0.00 | J140: 16.97 | K140: 29.95 | L140: 46.92
A141: 233 | B141: 阳光小镇 | C141: 5# | D141: 20303 | E141: 50.33 | F141: 全空置 | H141: 0.00 | I141: 0.00 | J141: 16.97 | K141: 29.95 | L141: 46.92
A142: 235 | B142: 阳光小镇 | C142: 5# | D142: 20401 | E142: 49.96 | F142: 全空置 | H142: 0.00 | I142: 0.00 | J142: 0.00 | K142: 23.01 | L142: 23.01
A143: 241 | B143: 阳光小镇 | C143: 5# | D143: 20503 | E143: 50.33 | F143: 全空置 | H143: 12.56 | I143: 29.95 | J143: 29.95 | K143: 29.95 | L143: 102.40
A144: 242 | B144: 阳光小镇 | C144: 5# | D144: 20504 | E144: 49.96 | F144: 全空置 | H144: 12.47 | I144: 29.73 | J144: 29.73 | K144: 29.73 | L144: 101.64
A145: 244 | B145: 阳光小镇 | C145: 5# | D145: 20602 | E145: 50.33 | F145: 全空置 | H145: 0.00 | I145: 0.00 | J145: 0.00 | K145: 0.00 | L145: 0.00
A146: 248 | B146: 阳光小镇 | C146: 6# | D146: 10102 | E146: 50.33 | F146: 全空置 | H146: 12.98 | I146: 29.95 | J146: 29.95 | K146: 29.95 | L146: 102.82
A147: 249 | B147: 阳光小镇 | C147: 6# | D147: 10103 | E147: 50.33 | F147: 全空置 | H147: 0.00 | I147: 0.00 | J147: 29.95 | K147: 29.95 | L147: 59.89
A148: 250 | B148: 阳光小镇 | C148: 6# | D148: 10104 | E148: 49.96 | F148: 全空置 | H148: 0.00 | I148: 0.00 | J148: 22.79 | K148: 29.73 | L148: 52.52
A149: 257 | B149: 阳光小镇 | C149: 6# | D149: 10303 | E149: 50.33 | F149: 全空置 | H149: 0.00 | I149: 0.00 | J149: 29.95 | K149: 29.95 | L149: 59.89
A150: 261 | B150: 阳光小镇 | C150: 6# | D150: 10403 | E150: 50.33 | F150: 全空置 | H150: 12.56 | I150: 29.95 | J150: 29.95 | K150: 29.95 | L150: 102.40
A151: 263 | B151: 阳光小镇 | C151: 6# | D151: 10501 | E151: 49.96 | F151: 全空置 | H151: 12.88 | I151: 29.73 | J151: 29.73 | K151: 29.73 | L151: 102.06
A152: 266 | B152: 阳光小镇 | C152: 6# | D152: 10504 | E152: 49.96 | F152: 全空置 | H152: 0.00 | I152: 8.63 | J152: 29.73 | K152: 29.73 | L152: 68.08
A153: 269 | B153: 阳光小镇 | C153: 6# | D153: 10603 | E153: 50.33 | F153: 全空置 | H153: 12.56 | I153: 29.95 | J153: 29.95 | K153: 29.95 | L153: 102.40
A154: 272 | B154: 阳光小镇 | C154: 6# | D154: 20102 | E154: 50.33 | F154: 全空置 | H154: 0.00 | I154: 0.00 | J154: 0.00 | K154: 0.00 | L154: 0.00
A155: 273 | B155: 阳光小镇 | C155: 6# | D155: 20103 | E155: 50.33 | F155: 全空置 | H155: 12.56 | I155: 29.95 | J155: 29.95 | K155: 29.95 | L155: 102.40
A156: 275 | B156: 阳光小镇 | C156: 6# | D156: 20201 | E156: 49.96 | F156: 全空置 | H156: 12.88 | I156: 29.73 | J156: 29.73 | K156: 29.73 | L156: 102.06
A157: 277 | B157: 阳光小镇 | C157: 6# | D157: 20203 | E157: 50.33 | F157: 全空置 | H157: 12.56 | I157: 29.95 | J157: 29.95 | K157: 29.95 | L157: 102.40
A158: 282 | B158: 阳光小镇 | C158: 6# | D158: 20304 | E158: 49.96 | F158: 全空置 | H158: 0.00 | I158: 0.00 | J158: 0.00 | K158: 0.00 | L158: 0.00
A159: 284 | B159: 阳光小镇 | C159: 6# | D159: 20402 | E159: 50.33 | F159: 全空置 | H159: 12.56 | I159: 29.95 | J159: 29.95 | K159: 29.95 | L159: 102.40
A160: 285 | B160: 阳光小镇 | C160: 6# | D160: 20403 | E160: 50.33 | F160: 全空置 | H160: 12.56 | I160: 29.95 | J160: 29.95 | K160: 29.95 | L160: 102.40
A161: 286 | B161: 阳光小镇 | C161: 6# | D161: 20404 | E161: 49.96 | F161: 全空置 | H161: 0.00 | I161: 0.00 | J161: 29.73 | K161: 29.73 | L161: 59.45
A162: 291 | B162: 阳光小镇 | C162: 6# | D162: 20601 | E162: 49.96 | F162: 全空置 | H162: 12.88 | I162: 29.73 | J162: 29.73 | K162: 29.73 | L162: 102.06
A163: 292 | B163: 阳光小镇 | C163: 6# | D163: 20602 | E163: 50.33 | F163: 全空置 | H163: 0.00 | I163: 0.00 | J163: 0.00 | K163: 0.00 | L163: 0.00
A164: 295 | B164: 阳光小镇 | C164: 7# | D164: 10101 | E164: 45.22 | F164: 全空置 | H164: 11.28 | I164: 26.91 | J164: 26.91 | K164: 26.91 | L164: 92.00
A165: 296 | B165: 阳光小镇 | C165: 7# | D165: 10102 | E165: 49.93 | F165: 全空置 | H165: 12.46 | I165: 29.71 | J165: 29.71 | K165: 29.71 | L165: 101.58
A166: 297 | B166: 阳光小镇 | C166: 7# | D166: 10103 | E166: 49.93 | F166: 全空置 | H166: 12.46 | I166: 29.71 | J166: 29.71 | K166: 29.71 | L166: 101.58
A167: 298 | B167: 阳光小镇 | C167: 7# | D167: 10104 | E167: 44.17 | F167: 全空置 | H167: 11.02 | I167: 26.28 | J167: 26.28 | K167: 26.28 | L167: 89.86
A168: 299 | B168: 阳光小镇 | C168: 7# | D168: 10201 | E168: 45.22 | F168: 全空置 | H168: 11.28 | I168: 26.91 | J168: 26.91 | K168: 26.91 | L168: 92.00
A169: 300 | B169: 阳光小镇 | C169: 7# | D169: 10202 | E169: 49.93 | F169: 全空置 | H169: 12.46 | I169: 29.71 | J169: 29.71 | K169: 29.71 | L169: 101.58
A170: 301 | B170: 阳光小镇 | C170: 7# | D170: 10203 | E170: 49.93 | F170: 全空置 | H170: 12.46 | I170: 29.71 | J170: 29.71 | K170: 29.71 | L170: 101.58
A171: 302 | B171: 阳光小镇 | C171: 7# | D171: 10204 | E171: 44.17 | F171: 全空置 | H171: 11.02 | I171: 26.28 | J171: 26.28 | K171: 26.28 | L171: 89.86
A172: 303 | B172: 阳光小镇 | C172: 7# | D172: 10301 | E172: 45.22 | F172: 全空置 | H172: 11.28 | I172: 26.91 | J172: 26.91 | K172: 26.91 | L172: 92.00
A173: 304 | B173: 阳光小镇 | C173: 7# | D173: 10302 | E173: 49.93 | F173: 全空置 | H173: 12.46 | I173: 29.71 | J173: 29.71 | K173: 29.71 | L173: 101.58
A174: 305 | B174: 阳光小镇 | C174: 7# | D174: 10303 | E174: 49.93 | F174: 全空置 | H174: 12.46 | I174: 29.71 | J174: 29.71 | K174: 29.71 | L174: 101.58
A175: 306 | B175: 阳光小镇 | C175: 7# | D175: 10304 | E175: 44.17 | F175: 全空置 | H175: 11.02 | I175: 26.28 | J175: 26.28 | K175: 26.28 | L175: 89.86
A176: 307 | B176: 阳光小镇 | C176: 7# | D176: 10401 | E176: 45.22 | F176: 全空置 | H176: 11.28 | I176: 26.91 | J176: 26.91 | K176: 26.91 | L176: 92.00
A177: 308 | B177: 阳光小镇 | C177: 7# | D177: 10402 | E177: 49.93 | F177: 全空置 | H177: 12.46 | I177: 29.71 | J177: 29.71 | K177: 29.71 | L177: 101.58
A178: 309 | B178: 阳光小镇 | C178: 7# | D178: 10403 | E178: 49.93 | F178: 全空置 | H178: 12.46 | I178: 29.71 | J178: 29.71 | K178: 29.71 | L178: 101.58
A179: 310 | B179: 阳光小镇 | C179: 7# | D179: 10404 | E179: 44.17 | F179: 全空置 | H179: 11.02 | I179: 26.28 | J179: 26.28 | K179: 26.28 | L179: 89.86
A180: 311 | B180: 阳光小镇 | C180: 7# | D180: 10501 | E180: 45.22 | F180: 全空置 | H180: 11.28 | I180: 26.91 | J180: 26.91 | K180: 26.91 | L180: 92.00
A181: 312 | B181: 阳光小镇 | C181: 7# | D181: 10502 | E181: 49.93 | F181: 全空置 | H181: 12.46 | I181: 29.71 | J181: 29.71 | K181: 29.71 | L181: 101.58
A182: 313 | B182: 阳光小镇 | C182: 7# | D182: 10503 | E182: 49.93 | F182: 全空置 | H182: 12.46 | I182: 29.71 | J182: 29.71 | K182: 29.71 | L182: 101.58
A183: 314 | B183: 阳光小镇 | C183: 7# | D183: 10504 | E183: 44.17 | F183: 全空置 | H183: 11.02 | I183: 26.28 | J183: 26.28 | K183: 26.28 | L183: 89.86
A184: 315 | B184: 阳光小镇 | C184: 7# | D184: 10601 | E184: 45.22 | F184: 全空置 | H184: 11.28 | I184: 26.91 | J184: 26.91 | K184: 26.91 | L184: 92.00
A185: 316 | B185: 阳光小镇 | C185: 7# | D185: 10602 | E185: 49.93 | F185: 全空置 | H185: 12.46 | I185: 29.71 | J185: 29.71 | K185: 29.71 | L185: 101.58
A186: 317 | B186: 阳光小镇 | C186: 7# | D186: 10603 | E186: 49.93 | F186: 全空置 | H186: 12.46 | I186: 29.71 | J186: 29.71 | K186: 29.71 | L186: 101.58
A187: 318 | B187: 阳光小镇 | C187: 7# | D187: 10604 | E187: 44.17 | F187: 全空置 | H187: 11.02 | I187: 26.28 | J187: 26.28 | K187: 26.28 | L187: 89.86
A188: 320 | B188: 阳光小镇 | C188: 7# | D188: 20102 | E188: 49.93 | F188: 全空置 | H188: 12.46 | I188: 29.71 | J188: 29.71 | K188: 29.71 | L188: 101.58
A189: 321 | B189: 阳光小镇 | C189: 7# | D189: 20103 | E189: 49.93 | F189: 全空置 | H189: 0.00 | I189: 0.00 | J189: 0.00 | K189: 9.58 | L189: 9.58
A190: 322 | B190: 阳光小镇 | C190: 7# | D190: 20104 | E190: 44.17 | F190: 全空置 | H190: 11.02 | I190: 26.28 | J190: 26.28 | K190: 26.28 | L190: 89.86
A191: 324 | B191: 阳光小镇 | C191: 7# | D191: 20202 | E191: 49.93 | F191: 全空置 | H191: 12.46 | I191: 29.71 | J191: 29.71 | K191: 29.71 | L191: 101.58
A192: 326 | B192: 阳光小镇 | C192: 7# | D192: 20204 | E192: 44.17 | F192: 全空置 | H192: 11.02 | I192: 26.28 | J192: 26.28 | K192: 26.28 | L192: 89.86
A193: 327 | B193: 阳光小镇 | C193: 7# | D193: 20301 | E193: 44.17 | F193: 全空置 | H193: 11.02 | I193: 26.28 | J193: 26.28 | K193: 26.28 | L193: 89.86
A194: 328 | B194: 阳光小镇 | C194: 7# | D194: 20302 | E194: 49.93 | F194: 全空置 | H194: 12.46 | I194: 29.71 | J194: 29.71 | K194: 29.71 | L194: =K194+J194+I194+H194 -> 101.58
A195: 329 | B195: 阳光小镇 | C195: 7# | D195: 20303 | E195: 49.93 | F195: 全空置 | H195: 0.00 | I195: 0.00 | J195: 3.96 | K195: 29.71 | L195: 33.67
A196: 331 | B196: 阳光小镇 | C196: 7# | D196: 20401 | E196: 44.17 | F196: 全空置 | H196: 11.02 | I196: 26.28 | J196: 26.28 | K196: 26.28 | L196: 89.86
A197: 332 | B197: 阳光小镇 | C197: 7# | D197: 20402 | E197: 49.93 | F197: 全空置 | H197: 12.46 | I197: 29.71 | J197: 29.71 | K197: 29.71 | L197: 101.58
A198: 333 | B198: 阳光小镇 | C198: 7# | D198: 20403 | E198: 49.93 | F198: 全空置 | H198: 12.46 | I198: 29.71 | J198: 29.71 | K198: 29.71 | L198: 101.58
A199: 334 | B199: 阳光小镇 | C199: 7# | D199: 20404 | E199: 44.17 | F199: 全空置 | H199: 11.02 | I199: 26.28 | J199: 26.28 | K199: 26.28 | L199: 89.86
A200: 335 | B200: 阳光小镇 | C200: 7# | D200: 20501 | E200: 44.17 | F200: 全空置 | H200: 11.02 | I200: 26.28 | J200: 26.28 | K200: 26.28 | L200: 89.86
... 210 more rows

Sheet Sheet4
A1: 阳光里小镇·青年汇2023年7月19日-12月空置房预收明细表
A2: 序号 | B2: 楼宇 | C2: 单元号 | D2: 房间号 | E2: 房屋 面积 | F2: 状态 | G2: 租赁起始日期 | H2: 7月 空置费 | I2: 8月 空置费 | J2: 9月 空置费 | K2: 10月 空置费 | L2: 小计 空置费 | M2: 备注
A3: 1 | B3: 阳光小镇 | C3: 1# | D3: 10102 | E3: 50.33 | F3: 全空置 | H3: =E3*0.85*0.7/31*13 -> 12.56 | I3: =E3*0.85*0.7 -> 29.95 | J3: =E3*0.85*0.7 -> 29.95 | K3: =E3*0.85*0.7 -> 29.95 | L3: =H3+I3+J3+K3 -> 102.40
A4: 2 | B4: 阳光小镇 | C4: 1# | D4: 10201 | E4: 49.96 | F4: 全空置 | H4: =E4*0.85*0.7/30*13 -> 12.88 | I4: 29.73 | J4: 29.73 | K4: 29.73 | L4: =H4+I4+J4+K4 -> 102.06
A5: 3 | B5: 阳光小镇 | C5: 1# | D5: 10202 | E5: 50.33 | F5: 全空置 | H5: 12.56 | I5: 29.95 | J5: 29.95 | K5: 29.95 | L5: 102.40
A6: 4 | B6: 阳光小镇 | C6: 1# | D6: 10203 | E6: 50.33 | F6: 全空置 | H6: 12.56 | I6: 29.95 | J6: 29.95 | K6: 29.95 | L6: 102.40
A7: 5 | B7: 阳光小镇 | C7: 1# | D7: 10204 | E7: 49.96 | F7: 全空置 | H7: 12.88 | I7: 29.73 | J7: 29.73 | K7: 29.73 | L7: 102.06
A8: 6 | B8: 阳光小镇 | C8: 1# | D8: 10301 | E8: 49.96 | F8: 全空置 | H8: 12.88 | I8: 29.73 | J8: 29.73 | K8: 29.73 | L8: 102.06
A9: 7 | B9: 阳光小镇 | C9: 1# | D9: 10302 | E9: 50.33 | F9: 全空置 | H9: =E9*0.85*0.7/31*13 -> 12.56 | I9: 29.95 | J9: 29.95 | K9: 29.95 | L9: 102.40
A10: 8 | B10: 阳光小镇 | C10: 1# | D10: 10303 | E10: 50.33 | F10: 全空置 | H10: 12.56 | I10: 29.95 | J10: 29.95 | K10: 29.95 | L10: 102.40
A11: 9 | B11: 阳光小镇 | C11: 1# | D11: 10304 | E11: 49.96 | F11: 全空置 | H11: =E11*0.85*0.7/30*13 -> 12.88 | I11: 29.73 | J11: 29.73 | K11: 29.73 | L11: 102.06
A12: 10 | B12: 阳光小镇 | C12: 1# | D12: 10401 | E12: 49.96 | F12: 全空置 | H12: 12.88 | I12: 29.73 | J12: 29.73 | K12: 29.73 | L12: 102.06
A13: 11 | B13: 阳光小镇 | C13: 1# | D13: 10402 | E13: 50.33 | F13: 全空置 | H13: 12.56 | I13: 29.95 | J13: 29.95 | K13: 29.95 | L13: 102.40
A14: 12 | B14: 阳光小镇 | C14: 1# | D14: 10403 | E14: 50.33 | F14: 全空置 | H14: 12.56 | I14: 29.95 | J14: 29.95 | K14: 29.95 | L14: 102.40
A15: 13 | B15: 阳光小镇 | C15: 1# | D15: 10404 | E15: 49.96 | F15: 全空置 | H15: 12.88 | I15: 29.73 | J15: 29.73 | K15: 29.73 | L15: 102.06
A16: 14 | B16: 阳光小镇 | C16: 1# | D16: 10501 | E16: 49.96 | F16: 全空置 | H16: 12.88 | I16: 29.73 | J16: 29.73 | K16: 29.73 | L16: 102.06
A17: 15 | B17: 阳光小镇 | C17: 1# | D17: 10502 | E17: 50.33 | F17: 全空置 | H17: =E17*0.85*0.7/31*13 -> 12.56 | I17: 29.95 | J17: 29.95 | K17: 29.95 | L17: 102.40
A18: 16 | B18: 阳光小镇 | C18: 1# | D18: 10503 | E18: 50.33 | F18: 全空置 | H18: 12.56 | I18: 29.95 | J18: 29.95 | K18: 29.95 | L18: 102.40
A19: 17 | B19: 阳光小镇 | C19: 1# | D19: 10504 | E19: 49.96 | F19: 全空置 | H19: =E19*0.85*0.7/30*13 -> 12.88 | I19: 29.73 | J19: 29.73 | K19: 29.73 | L19: 102.06
A20: 18 | B20: 阳光小镇 | C20: 1# | D20: 10601 | E20: 49.96 | F20: 全空置 | H20: 12.88 | I20: 29.73 | J20: 29.73 | K20: 29.73 | L20: 102.06
A21: 19 | B21: 阳光小镇 | C21: 1# | D21: 10602 | E21: 50.33 | F21: 全空置 | H21: 12.56 | I21: 29.95 | J21: 29.95 | K21: 29.95 | L21: 102.40
A22: 20 | B22: 阳光小镇 | C22: 1# | D22: 10603 | E22: 50.33 | F22: 全空置 | H22: 12.56 | I22: 29.95 | J22: 29.95 | K22: 29.95 | L22: 102.40
A23: 21 | B23: 阳光小镇 | C23: 1# | D23: 10604 | E23: 49.96 | F23: 全空置 | H23: 12.88 | I23: 29.73 | J23: 29.73 | K23: 29.73 | L23: 102.06
A24: 22 | B24: 阳光小镇 | C24: 1# | D24: 20101 | E24: 50.33 | F24: 全空置 | H24: =E24*0.85*0.7/31*13 -> 12.56 | I24: 29.95 | J24: 29.95 | K24: 29.95 | L24: 102.40
A25: 23 | B25: 阳光小镇 | C25: 1# | D25: 20201 | E25: 49.96 | F25: 全空置 | H25: =E25*0.85*0.7/30*13 -> 12.88 | I25: 29.73 | J25: 29.73 | K25: 29.73 | L25: 102.06
A26: 24 | B26: 阳光小镇 | C26: 1# | D26: 20202 | E26: 50.33 | F26: 全空置 | H26: 12.56 | I26: 29.95 | J26: 29.95 | K26: 29.95 | L26: 102.40
A27: 25 | B27: 阳光小镇 | C27: 1# | D27: 20203 | E27: 50.33 | F27: 全空置 | H27: 12.56 | I27: 29.95 | J27: 29.95 | K27: 29.95 | L27: 102.40
A28: 26 | B28: 阳光小镇 | C28: 1# | D28: 20204 | E28: 49.96 | F28: 全空置 | H28: 12.88 | I28: 29.73 | J28: 29.73 | K28: 29.73 | L28: 102.06
A29: 27 | B29: 阳光小镇 | C29: 1# | D29: 20301 | E29: 49.96 | F29: 全空置 | H29: 12.88 | I29: 29.73 | J29: 29.73 | K29: 29.73 | L29: 102.06
A30: 28 | B30: 阳光小镇 | C30: 1# | D30: 20302 | E30: 50.33 | F30: 全空置 | H30: =E30*0.85*0.7/31*13 -> 12.56 | I30: 29.95 | J30: 29.95 | K30: 29.95 | L30: 102.40
A31: 29 | B31: 阳光小镇 | C31: 1# | D31: 20303 | E31: 50.33 | F31: 全空置 | H31: 12.56 | I31: 29.95 | J31: 29.95 | K31: 29.95 | L31: 102.40
A32: 30 | B32: 阳光小镇 | C32: 1# | D32: 20304 | E32: 49.96 | F32: 全空置 | H32: =E32*0.85*0.7/30*13 -> 12.88 | I32: 29.73 | J32: 29.73 | K32: 29.73 | L32: 102.06
A33: 31 | B33: 阳光小镇 | C33: 1# | D33: 20401 | E33: 49.96 | F33: 全空置 | H33: 12.88 | I33: 29.73 | J33: 29.73 | K33: 29.73 | L33: 102.06
A34: 32 | B34: 阳光小镇 | C34: 1# | D34: 20402 | E34: 50.33 | F34: 全空置 | H34: 12.56 | I34: 29.95 | J34: 29.95 | K34: 29.95 | L34: 102.40
A35: 33 | B35: 阳光小镇 | C35: 1# | D35: 20403 | E35: 50.33 | F35: 全空置 | H35: 12.56 | I35: 29.95 | J35: 29.95 | K35: 29.95 | L35: 102.40
A36: 34 | B36: 阳光小镇 | C36: 1# | D36: 20404 | E36: 49.96 | F36: 全空置 | H36: 12.88 | I36: 29.73 | J36: 29.73 | K36: 29.73 | L36: 102.06
A37: 35 | B37: 阳光小镇 | C37: 1# | D37: 20501 | E37: 49.96 | F37: 全空置 | H37: 12.88 | I37: 29.73 | J37: 29.73 | K37: 29.73 | L37: 102.06
A38: 36 | B38: 阳光小镇 | C38: 1# | D38: 20502 | E38: 50.33 | F38: 全空置 | H38: =E38*0.85*0.7/31*13 -> 12.56 | I38: 29.95 | J38: 29.95 | K38: 29.95 | L38: 102.40
A39: 37 | B39: 阳光小镇 | C39: 1# | D39: 20503 | E39: 50.33 | F39: 全空置 | H39: 12.56 | I39: 29.95 | J39: 29.95 | K39: 29.95 | L39: 102.40
A40: 38 | B40: 阳光小镇 | C40: 1# | D40: 20504 | E40: 49.96 | F40: 全空置 | H40: =E40*0.85*0.7/30*13 -> 12.88 | I40: 29.73 | J40: 29.73 | K40: 29.73 | L40: 102.06
A41: 39 | B41: 阳光小镇 | C41: 1# | D41: 20601 | E41: 49.96 | F41: 全空置 | H41: 12.88 | I41: 29.73 | J41: 29.73 | K41: 29.73 | L41: 102.06
A42: 40 | B42: 阳光小镇 | C42: 1# | D42: 20602 | E42: 50.33 | F42: 全空置 | H42: 12.56 | I42: 29.95 | J42: 29.95 | K42: 29.95 | L42: 102.40
A43: 41 | B43: 阳光小镇 | C43: 1# | D43: 20603 | E43: 50.33 | F43: 全空置 | H43: 12.56 | I43: 29.95 | J43: 29.95 | K43: 29.95 | L43: 102.40
A44: 42 | B44: 阳光小镇 | C44: 1# | D44: 20604 | E44: 49.96 | F44: 全空置 | H44: 12.88 | I44: 29.73 | J44: 29.73 | K44: 29.73 | L44: 102.06
A45: 43 | B45: 阳光小镇 | C45: 2# | D45: 10101 | E45: 50.33 | F45: 全空置 | H45: =E45*0.85*0.7/31*13 -> 12.56 | I45: 29.95 | J45: 29.95 | K45: 29.95 | L45: 102.40
A46: 44 | B46: 阳光小镇 | C46: 2# | D46: 10201 | E46: 49.96 | F46: 全空置 | H46: =E46*0.85*0.7/30*13 -> 12.88 | I46: 29.73 | J46: 29.73 | K46: 29.73 | L46: 102.06
A47: 45 | B47: 阳光小镇 | C47: 2# | D47: 10202 | E47: 50.33 | F47: 全空置 | H47: 12.56 | I47: 29.95 | J47: 29.95 | K47: 29.95 | L47: 102.40
A48: 46 | B48: 阳光小镇 | C48: 2# | D48: 10203 | E48: 50.33 | F48: 全空置 | H48: 12.56 | I48: 29.95 | J48: 29.95 | K48: 29.95 | L48: 102.40
A49: 47 | B49: 阳光小镇 | C49: 2# | D49: 10204 | E49: 49.96 | F49: 全空置 | H49: 12.88 | I49: 29.73 | J49: 29.73 | K49: 29.73 | L49: 102.06
A50: 50 | B50: 阳光小镇 | C50: 2# | D50: 10303 | E50: 50.33 | F50: 全空置 | H50: =E50*0.85*0.7/31*13 -> 12.56 | I50: 29.95 | J50: 29.95 | K50: 29.95 | L50: 102.40
A51: 52 | B51: 阳光小镇 | C51: 2# | D51: 10401 | E51: 49.96 | F51: 全空置 | H51: 12.88 | I51: 29.73 | J51: 29.73 | K51: 29.73 | L51: 102.06
A52: 53 | B52: 阳光小镇 | C52: 2# | D52: 10402 | E52: 50.33 | F52: 全空置 | H52: 12.56 | I52: 29.95 | J52: 29.95 | K52: 29.95 | L52: 102.40
A53: 54 | B53: 阳光小镇 | C53: 2# | D53: 10403 | E53: 50.33 | F53: 全空置 | H53: 12.56 | I53: 29.95 | J53: 29.95 | K53: 29.95 | L53: 102.40
A54: 56 | B54: 阳光小镇 | C54: 2# | D54: 10501 | E54: 49.96 | F54: 全空置 | H54: =E54*0.85*0.7/30*13 -> 12.88 | I54: 29.73 | J54: 29.73 | K54: 29.73 | L54: 102.06
A55: 57 | B55: 阳光小镇 | C55: 2# | D55: 10502 | E55: 50.33 | F55: 全空置 | H55: =E55*0.85*0.7/31*13 -> 12.56 | I55: 29.95 | J55: 29.95 | K55: 29.95 | L55: 102.40
A56: 58 | B56: 阳光小镇 | C56: 2# | D56: 10503 | E56: 50.33 | F56: 全空置 | H56: 12.56 | I56: 29.95 | J56: 29.95 | K56: 29.95 | L56: 102.40
A57: 59 | B57: 阳光小镇 | C57: 2# | D57: 10504 | E57: 49.96 | F57: 全空置 | H57: 12.88 | I57: 29.73 | J57: 29.73 | K57: 29.73 | L57: 102.06
A58: 60 | B58: 阳光小镇 | C58: 2# | D58: 10601 | E58: 49.96 | F58: 全空置 | H58: 12.88 | I58: 29.73 | J58: 29.73 | K58: 29.73 | L58: 102.06
A59: 61 | B59: 阳光小镇 | C59: 2# | D59: 10602 | E59: 50.33 | F59: 全空置 | H59: 12.56 | I59: 29.95 | J59: 29.95 | K59: 29.95 | L59: 102.40
A60: 62 | B60: 阳光小镇 | C60: 2# | D60: 10603 | E60: 50.33 | F60: 全空置 | H60: 12.56 | I60: 29.95 | J60: 29.95 | K60: 29.95 | L60: 102.40
A61: 63 | B61: 阳光小镇 | C61: 2# | D61: 10604 | E61: 49.96 | F61: 全空置 | H61: =E61*0.85*0.7/30*13 -> 12.88 | I61: 29.73 | J61: 29.73 | K61: 29.73 | L61: 102.06
A62: 65 | B62: 阳光小镇 | C62: 2# | D62: 20201 | E62: 49.96 | F62: 全空置 | H62: 12.88 | I62: 29.73 | J62: 29.73 | K62: 29.73 | L62: 102.06
A63: 66 | B63: 阳光小镇 | C63: 2# | D63: 20202 | E63: 50.33 | F63: 全空置 | H63: =E63*0.85*0.7/31*13 -> 12.56 | I63: 29.95 | J63: 29.95 | K63: 29.95 | L63: 102.40
A64: 68 | B64: 阳光小镇 | C64: 2# | D64: 20204 | E64: 49.96 | F64: 全空置 | H64: 0.00 | I64: 0.00 | J64: 0.00 | K64: =E64*0.85*0.7/31*14 -> 13.42 | L64: 13.42
A65: 69 | B65: 阳光小镇 | C65: 2# | D65: 20301 | E65: 49.96 | F65: 全空置 | H65: 12.88 | I65: =E65*0.85*0.7 -> 29.73 | J65: =E65*0.85*0.7 -> 29.73 | K65: =E65*0.85*0.7 -> 29.73 | L65: 102.06
A66: 70 | B66: 阳光小镇 | C66: 2# | D66: 20302 | E66: 50.33 | F66: 全空置 | H66: 0.00 | I66: 29.95 | J66: 29.95 | K66: 29.95 | L66: 89.84
A67: 71 | B67: 阳光小镇 | C67: 2# | D67: 20303 | E67: 50.33 | F67: 全空置 | H67: =E67*0.85*0.7/31*13 -> 12.56 | I67: 29.95 | J67: 29.95 | K67: 29.95 | L67: 102.40
A68: 77 | B68: 阳光小镇 | C68: 2# | D68: 20501 | E68: 49.96 | F68: 全空置 | H68: 0.00 | I68: 0.00 | J68: 0.00 | K68: 0.00 | L68: =H68+I68+J68+K68 -> 0.00
A69: 78 | B69: 阳光小镇 | C69: 2# | D69: 20502 | E69: 50.33 | F69: 全空置 | H69: 0.00 | I69: 0.00 | J69: 0.00 | K69: 0.00 | L69: 0.00
A70: 79 | B70: 阳光小镇 | C70: 2# | D70: 20503 | E70: 50.33 | F70: 全空置 | H70: 0.00 | I70: 0.00 | J70: 0.00 | K70: 0.00 | L70: 0.00
A71: 81 | B71: 阳光小镇 | C71: 2# | D71: 20601 | E71: 49.96 | F71: 全空置 | H71: =E71*0.85*0.7/30*13 -> 12.88 | I71: =E71*0.85*0.7 -> 29.73 | J71: =E71*0.85*0.7 -> 29.73 | K71: =E71*0.85*0.7 -> 29.73 | L71: 102.06
A72: 82 | B72: 阳光小镇 | C72: 2# | D72: 20602 | E72: 50.33 | F72: 全空置 | H72: =E72*0.85*0.7/31*13 -> 12.56 | I72: 29.95 | J72: 29.95 | K72: 29.95 | L72: 102.40
A73: 92 | B73: 阳光小镇 | C73: 3# | D73: 10303 | E73: 50.33 | F73: 全空置 | H73: 0.00 | I73: 29.95 | J73: 29.95 | K73: 29.95 | L73: 89.84
A74: 93 | B74: 阳光小镇 | C74: 3# | D74: 10304 | E74: 49.96 | F74: 全空置 | H74: 0.00 | I74: 29.73 | J74: 29.73 | K74: 29.73 | L74: 89.18
A75: 99 | B75: 阳光小镇 | C75: 3# | D75: 10502 | E75: 50.33 | F75: 全空置 | H75: 12.56 | I75: 29.95 | J75: 29.95 | K75: 29.95 | L75: 102.40
A76: 102 | B76: 阳光小镇 | C76: 3# | D76: 10601 | E76: 49.96 | F76: 全空置 | H76: =E76*0.85*0.7/30*13 -> 12.88 | I76: 29.73 | J76: 29.73 | K76: 29.73 | L76: 102.06
A77: 103 | B77: 阳光小镇 | C77: 3# | D77: 10602 | E77: 50.33 | F77: 全空置 | H77: 12.56 | I77: 29.95 | J77: 29.95 | K77: 29.95 | L77: 102.40
A78: 104 | B78: 阳光小镇 | C78: 3# | D78: 10603 | E78: 50.33 | F78: 全空置 | H78: 12.56 | I78: 29.95 | J78: 29.95 | K78: 29.95 | L78: 102.40
A79: 127 | B79: 阳光小镇 | C79: 4# | D79: 10101 | E79: 45.22 | F79: 全空置 | H79: 11.28 | I79: 26.91 | J79: 26.91 | K79: 26.91 | L79: 92.00
A80: 128 | B80: 阳光小镇 | C80: 4# | D80: 10102 | E80: 49.93 | F80: 全空置 | H80: 12.46 | I80: 29.71 | J80: 29.71 | K80: 29.71 | L80: 101.58
A81: 129 | B81: 阳光小镇 | C81: 4# | D81: 10103 | E81: 49.93 | F81: 全空置 | H81: 12.46 | I81: 29.71 | J81: 29.71 | K81: 29.71 | L81: 101.58
A82: 130 | B82: 阳光小镇 | C82: 4# | D82: 10104 | E82: 44.17 | F82: 全空置 | H82: 11.02 | I82: 26.28 | J82: 26.28 | K82: 26.28 | L82: 89.86
A83: 132 | B83: 阳光小镇 | C83: 4# | D83: 10202 | E83: 49.93 | F83: 全空置 | H83: 12.46 | I83: 29.71 | J83: 29.71 | K83: 29.71 | L83: 101.58
A84: 133 | B84: 阳光小镇 | C84: 4# | D84: 10203 | E84: 49.93 | F84: 全空置 | H84: 12.46 | I84: 29.71 | J84: 29.71 | K84: 29.71 | L84: 101.58
A85: 134 | B85: 阳光小镇 | C85: 4# | D85: 10204 | E85: 44.17 | F85: 全空置 | H85: 11.02 | I85: 26.28 | J85: 26.28 | K85: 26.28 | L85: 89.86
A86: 135 | B86: 阳光小镇 | C86: 4# | D86: 10301 | E86: 45.22 | F86: 全空置 | H86: 0.00 | I86: 0.00 | J86: =E86*0.85*0.7/30*5 -> 4.48 | K86: 26.91 | L86: 31.39
A87: 137 | B87: 阳光小镇 | C87: 4# | D87: 10303 | E87: 49.93 | F87: 全空置 | H87: =E87*0.85*0.7/31*13 -> 12.46 | I87: =E87*0.85*0.7 -> 29.71 | J87: =E87*0.85*0.7 -> 29.71 | K87: 29.71 | L87: 101.58
A88: 140 | B88: 阳光小镇 | C88: 4# | D88: 10402 | E88: 49.93 | F88: 全空置 | H88: 0.00 | I88: 0.00 | J88: 0.00 | K88: 0.00 | L88: 0.00
A89: 142 | B89: 阳光小镇 | C89: 4# | D89: 10404 | E89: 44.17 | F89: 全空置 | H89: 0.00 | I89: 0.00 | J89: 4.48 | K89: =E89*0.85*0.7 -> 26.28 | L89: 30.76
A90: 145 | B90: 阳光小镇 | C90: 4# | D90: 10503 | E90: 49.93 | F90: 全空置 | H90: 12.46 | I90: 29.71 | J90: 29.71 | K90: 29.71 | L90: 101.58
A91: 146 | B91: 阳光小镇 | C91: 4# | D91: 10504 | E91: 44.17 | F91: 全空置 | H91: 0.00 | I91: 0.00 | J91: 0.00 | K91: 0.00 | L91: 0.00
A92: 147 | B92: 阳光小镇 | C92: 4# | D92: 10601 | E92: 45.22 | F92: 全空置 | H92: 11.28 | I92: 26.91 | J92: 26.91 | K92: 26.91 | L92: 92.00
A93: 148 | B93: 阳光小镇 | C93: 4# | D93: 10602 | E93: 49.93 | F93: 全空置 | H93: 12.46 | I93: 29.71 | J93: 29.71 | K93: 29.71 | L93: 101.58
A94: 149 | B94: 阳光小镇 | C94: 4# | D94: 10603 | E94: 49.93 | F94: 全空置 | H94: 12.46 | I94: 29.71 | J94: 29.71 | K94: 29.71 | L94: 101.58
A95: 150 | B95: 阳光小镇 | C95: 4# | D95: 10604 | E95: 44.17 | F95: 全空置 | H95: 11.02 | I95: 26.28 | J95: 26.28 | K95: 26.28 | L95: 89.86
A96: 151 | B96: 阳光小镇 | C96: 4# | D96: 20101 | E96: 44.17 | F96: 全空置 | H96: 11.02 | I96: 26.28 | J96: 26.28 | K96: 26.28 | L96: 89.86
A97: 152 | B97: 阳光小镇 | C97: 4# | D97: 20102 | E97: 49.93 | F97: 全空置 | H97: 12.46 | I97: 29.71 | J97: 29.71 | K97: 29.71 | L97: 101.58
A98: 153 | B98: 阳光小镇 | C98: 4# | D98: 20103 | E98: 49.93 | F98: 全空置 | H98: 12.46 | I98: 29.71 | J98: 29.71 | K98: 29.71 | L98: 101.58
A99: 154 | B99: 阳光小镇 | C99: 4# | D99: 20104 | E99: 44.17 | F99: 全空置 | H99: 11.02 | I99: 26.28 | J99: 26.28 | K99: 26.28 | L99: 89.86
A100: 155 | B100: 阳光小镇 | C100: 4# | D100: 20201 | E100: 44.17 | F100: 全空置 | H100: 11.02 | I100: 26.28 | J100: 26.28 | K100: 26.28 | L100: 89.86
A101: 156 | B101: 阳光小镇 | C101: 4# | D101: 20202 | E101: 49.93 | F101: 全空置 | H101: 12.46 | I101: 29.71 | J101: 29.71 | K101: 29.71 | L101: 101.58
A102: 157 | B102: 阳光小镇 | C102: 4# | D102: 20203 | E102: 49.93 | F102: 全空置 | H102: 12.46 | I102: 29.71 | J102: 29.71 | K102: 29.71 | L102: 101.58
A103: 158 | B103: 阳光小镇 | C103: 4# | D103: 20204 | E103: 44.17 | F103: 全空置 | H103: 11.02 | I103: 26.28 | J103: 26.28 | K103: 26.28 | L103: 89.86
A104: 159 | B104: 阳光小镇 | C104: 4# | D104: 20301 | E104: 44.17 | F104: 全空置 | H104: 11.02 | I104: 26.28 | J104: 26.28 | K104: 26.28 | L104: 89.86
A105: 160 | B105: 阳光小镇 | C105: 4# | D105: 20302 | E105: 49.93 | F105: 全空置 | H105: 12.46 | I105: 29.71 | J105: 29.71 | K105: 29.71 | L105: 101.58
A106: 161 | B106: 阳光小镇 | C106: 4# | D106: 20303 | E106: 49.93 | F106: 全空置 | H106: 12.46 | I106: 29.71 | J106: 29.71 | K106: 29.71 | L106: 101.58
A107: 162 | B107: 阳光小镇 | C107: 4# | D107: 20304 | E107: 44.17 | F107: 全空置 | H107: 11.02 | I107: 26.28 | J107: 26.28 | K107: 26.28 | L107: 89.86
A108: 163 | B108: 阳光小镇 | C108: 4# | D108: 20401 | E108: 44.17 | F108: 全空置 | H108: 11.02 | I108: 26.28 | J108: 26.28 | K108: 26.28 | L108: 89.86
A109: 164 | B109: 阳光小镇 | C109: 4# | D109: 20402 | E109: 49.93 | F109: 全空置 | H109: 12.46 | I109: 29.71 | J109: 29.71 | K109: 29.71 | L109: 101.58
A110: 165 | B110: 阳光小镇 | C110: 4# | D110: 20403 | E110: 49.93 | F110: 全空置 | H110: 12.46 | I110: 29.71 | J110: 29.71 | K110: 29.71 | L110: 101.58
A111: 166 | B111: 阳光小镇 | C111: 4# | D111: 20404 | E111: 44.17 | F111: 全空置 | H111: 11.02 | I111: 26.28 | J111: 26.28 | K111: 26.28 | L111: 89.86
A112: 167 | B112: 阳光小镇 | C112: 4# | D112: 20501 | E112: 44.17 | F112: 全空置 | H112: 11.02 | I112: 26.28 | J112: 26.28 | K112: 26.28 | L112: 89.86
A113: 168 | B113: 阳光小镇 | C113: 4# | D113: 20502 | E113: 49.93 | F113: 全空置 | H113: 12.46 | I113: 29.71 | J113: 29.71 | K113: 29.71 | L113: 101.58
A114: 169 | B114: 阳光小镇 | C114: 4# | D114: 20503 | E114: 49.93 | F114: 全空置 | H114: 12.46 | I114: 29.71 | J114: 29.71 | K114: 29.71 | L114: 101.58
A115: 170 | B115: 阳光小镇 | C115: 4# | D115: 20504 | E115: 44.17 | F115: 全空置 | H115: 11.02 | I115: 26.28 | J115: 26.28 | K115: 26.28 | L115: 89.86
A116: 171 | B116: 阳光小镇 | C116: 4# | D116: 20601 | E116: 44.17 | F116: 全空置 | H116: 11.02 | I116: 26.28 | J116: 26.28 | K116: 26.28 | L116: 89.86
A117: 172 | B117: 阳光小镇 | C117: 4# | D117: 20602 | E117: 49.93 | F117: 全空置 | H117: 12.46 | I117: 29.71 | J117: 29.71 | K117: 29.71 | L117: 101.58
A118: 173 | B118: 阳光小镇 | C118: 4# | D118: 20603 | E118: 49.93 | F118: 全空置 | H118: 12.46 | I118: 29.71 | J118: 29.71 | K118: 29.71 | L118: 101.58
A119: 174 | B119: 阳光小镇 | C119: 4# | D119: 20604 | E119: 44.17 | F119: 全空置 | H119: 11.02 | I119: 26.28 | J119: 26.28 | K119: 26.28 | L119: 89.86
A120: 175 | B120: 阳光小镇 | C120: 4# | D120: 30101 | E120: 44.17 | F120: 全空置 | H120: 11.02 | I120: 26.28 | J120: 26.28 | K120: 26.28 | L120: 89.86
A121: 178 | B121: 阳光小镇 | C121: 4# | D121: 30104 | E121: 45.22 | F121: 全空置 | H121: 11.28 | I121: 26.91 | J121: 26.91 | K121: 26.91 | L121: 92.00
A122: 183 | B122: 阳光小镇 | C122: 4# | D122: 30301 | E122: 44.17 | F122: 全空置 | H122: 11.02 | I122: 26.28 | J122: 26.28 | K122: 26.28 | L122: 89.86
A123: 184 | B123: 阳光小镇 | C123: 4# | D123: 30302 | E123: 49.93 | F123: 全空置 | H123: 12.46 | I123: 29.71 | J123: 29.71 | K123: 29.71 | L123: 101.58
A124: 185 | B124: 阳光小镇 | C124: 4# | D124: 30303 | E124: 49.93 | F124: 全空置 | H124: 12.46 | I124: 29.71 | J124: 29.71 | K124: 29.71 | L124: 101.58
A125: 186 | B125: 阳光小镇 | C125: 4# | D125: 30304 | E125: 45.22 | F125: 全空置 | H125: 0.00 | I125: 26.91 | J125: 26.91 | K125: 26.91 | L125: 80.72
A126: 187 | B126: 阳光小镇 | C126: 4# | D126: 30401 | E126: 44.17 | F126: 全空置 | H126: =E126*0.85*0.7/31*13 -> 11.02 | I126: 26.28 | J126: 26.28 | K126: 26.28 | L126: 89.86
A127: 188 | B127: 阳光小镇 | C127: 4# | D127: 30402 | E127: 49.93 | F127: 全空置 | H127: 12.46 | I127: 29.71 | J127: 29.71 | K127: 29.71 | L127: 101.58
A128: 189 | B128: 阳光小镇 | C128: 4# | D128: 30403 | E128: 49.93 | F128: 全空置 | H128: 0.00 | I128: 0.00 | J128: 0.00 | K128: =E128*0.85*0.7/31*16 -> 15.33 | L128: 15.33
A129: 190 | B129: 阳光小镇 | C129: 4# | D129: 30404 | E129: 45.22 | F129: 全空置 | H129: 0.00 | I129: 0.00 | J129: 0.00 | K129: =E129*0.85*0.7/31*24 -> 20.83 | L129: 20.83
A130: 191 | B130: 阳光小镇 | C130: 4# | D130: 30501 | E130: 44.17 | F130: 全空置 | H130: 11.02 | I130: =E130*0.85*0.7 -> 26.28 | J130: =E130*0.85*0.7 -> 26.28 | K130: =E130*0.85*0.7 -> 26.28 | L130: 89.86
A131: 193 | B131: 阳光小镇 | C131: 4# | D131: 30503 | E131: 49.93 | F131: 全空置 | H131: 12.46 | I131: 29.71 | J131: 29.71 | K131: 29.71 | L131: 101.58
A132: 194 | B132: 阳光小镇 | C132: 4# | D132: 30504 | E132: 45.22 | F132: 全空置 | H132: 11.28 | I132: 26.91 | J132: 26.91 | K132: 26.91 | L132: =H132+I132+J132+K132 -> 92.00
A133: 197 | B133: 阳光小镇 | C133: 4# | D133: 30603 | E133: 49.93 | F133: 全空置 | H133: 12.46 | I133: 29.71 | J133: 29.71 | K133: 29.71 | L133: 101.58
A134: 198 | B134: 阳光小镇 | C134: 4# | D134: 30604 | E134: 45.22 | F134: 全空置 | H134: 11.28 | I134: 26.91 | J134: 26.91 | K134: 26.91 | L134: 92.00
A135: 204 | B135: 阳光小镇 | C135: 5# | D135: 10202 | E135: 50.33 | F135: 全空置 | H135: 12.56 | I135: 29.95 | J135: 29.95 | K135: 29.95 | L135: 102.40
A136: 205 | B136: 阳光小镇 | C136: 5# | D136: 10203 | E136: 50.33 | F136: 全空置 | H136: 12.56 | I136: 29.95 | J136: 29.95 | K136: 29.95 | L136: 102.40
A137: 207 | B137: 阳光小镇 | C137: 5# | D137: 10301 | E137: 49.96 | F137: 全空置 | H137: =E137*0.85*0.7/30*13 -> 12.88 | I137: 29.73 | J137: 29.73 | K137: 29.73 | L137: 102.06
A138: 212 | B138: 阳光小镇 | C138: 5# | D138: 10402 | E138: 50.33 | F138: 全空置 | H138: =E138*0.85*0.7/31*13 -> 12.56 | I138: 29.95 | J138: 29.95 | K138: 29.95 | L138: 102.40
A139: 215 | B139: 阳光小镇 | C139: 5# | D139: 10501 | E139: 49.96 | F139: 全空置 | H139: =E139*0.85*0.7/30*13 -> 12.88 | I139: 29.73 | J139: 29.73 | K139: 29.73 | L139: 102.06
A140: 218 | B140: 阳光小镇 | C140: 5# | D140: 10504 | E140: 49.96 | F140: 全空置 | H140: 0.00 | I140: =E140*0.85*0.7/31*8 -> 7.67 | J140: 29.73 | K140: 29.73 | L140: 67.12
A141: 220 | B141: 阳光小镇 | C141: 5# | D141: 10602 | E141: 50.33 | F141: 全空置 | H141: =E141*0.85*0.7/31*13 -> 12.56 | I141: =E141*0.85*0.7 -> 29.95 | J141: 29.95 | K141: 29.95 | L141: 102.40
A142: 232 | B142: 阳光小镇 | C142: 5# | D142: 20302 | E142: 50.33 | F142: 全空置 | H142: 0.00 | I142: 0.00 | J142: =E142*0.85*0.7/30*17 -> 16.97 | K142: 29.95 | L142: 46.92
A143: 233 | B143: 阳光小镇 | C143: 5# | D143: 20303 | E143: 50.33 | F143: 全空置 | H143: 0.00 | I143: 0.00 | J143: =E143*0.85*0.7/30*17 -> 16.97 | K143: 29.95 | L143: 46.92
A144: 235 | B144: 阳光小镇 | C144: 5# | D144: 20401 | E144: 49.96 | F144: 全空置 | H144: 0.00 | I144: 0.00 | J144: 0.00 | K144: =E144*0.85*0.7/31*24 -> 23.01 | L144: 23.01
A145: 241 | B145: 阳光小镇 | C145: 5# | D145: 20503 | E145: 50.33 | F145: 全空置 | H145: 12.56 | I145: 29.95 | J145: =E145*0.85*0.7 -> 29.95 | K145: =E145*0.85*0.7 -> 29.95 | L145: 102.40
A146: 242 | B146: 阳光小镇 | C146: 5# | D146: 20504 | E146: 49.96 | F146: 全空置 | H146: 12.47 | I146: 29.73 | J146: 29.73 | K146: 29.73 | L146: 101.64
A147: 244 | B147: 阳光小镇 | C147: 5# | D147: 20602 | E147: 50.33 | F147: 全空置 | H147: 0.00 | I147: 0.00 | J147: 0.00 | K147: 0.00 | L147: 0.00
A148: 248 | B148: 阳光小镇 | C148: 6# | D148: 10102 | E148: 50.33 | F148: 全空置 | H148: =E148*0.85*0.7/30*13 -> 12.98 | I148: =E148*0.85*0.7 -> 29.95 | J148: 29.95 | K148: 29.95 | L148: 102.82
A149: 249 | B149: 阳光小镇 | C149: 6# | D149: 10103 | E149: 50.33 | F149: 全空置 | H149: 0.00 | I149: 0.00 | J149: 29.95 | K149: 29.95 | L149: 59.89
A150: 250 | B150: 阳光小镇 | C150: 6# | D150: 10104 | E150: 49.96 | F150: 全空置 | H150: 0.00 | I150: 0.00 | J150: =E150*0.85*0.7/30*23 -> 22.79 | K150: 29.73 | L150: 52.52
A151: 257 | B151: 阳光小镇 | C151: 6# | D151: 10303 | E151: 50.33 | F151: 全空置 | H151: 0.00 | I151: 0.00 | J151: =E151*0.85*0.7 -> 29.95 | K151: 29.95 | L151: 59.89
A152: 261 | B152: 阳光小镇 | C152: 6# | D152: 10403 | E152: 50.33 | F152: 全空置 | H152: =E152*0.85*0.7/31*13 -> 12.56 | I152: 29.95 | J152: 29.95 | K152: 29.95 | L152: 102.40
A153: 263 | B153: 阳光小镇 | C153: 6# | D153: 10501 | E153: 49.96 | F153: 全空置 | H153: =E153*0.85*0.7/30*13 -> 12.88 | I153: 29.73 | J153: 29.73 | K153: 29.73 | L153: 102.06
A154: 266 | B154: 阳光小镇 | C154: 6# | D154: 10504 | E154: 49.96 | F154: 全空置 | H154: 0.00 | I154: =E154*0.85*0.7/31*9 -> 8.63 | J154: 29.73 | K154: 29.73 | L154: 68.08
A155: 269 | B155: 阳光小镇 | C155: 6# | D155: 10603 | E155: 50.33 | F155: 全空置 | H155: 12.56 | I155: =E155*0.85*0.7 -> 29.95 | J155: 29.95 | K155: 29.95 | L155: 102.40
A156: 272 | B156: 阳光小镇 | C156: 6# | D156: 20102 | E156: 50.33 | F156: 全空置 | H156: 0.00 | I156: 0.00 | J156: 0.00 | K156: 0.00 | L156: 0.00
A157: 273 | B157: 阳光小镇 | C157: 6# | D157: 20103 | E157: 50.33 | F157: 全空置 | H157: 12.56 | I157: 29.95 | J157: =E157*0.85*0.7 -> 29.95 | K157: =E157*0.85*0.7 -> 29.95 | L157: 102.40
A158: 275 | B158: 阳光小镇 | C158: 6# | D158: 20201 | E158: 49.96 | F158: 全空置 | H158: =E158*0.85*0.7/30*13 -> 12.88 | I158: 29.73 | J158: 29.73 | K158: 29.73 | L158: 102.06
A159: 277 | B159: 阳光小镇 | C159: 6# | D159: 20203 | E159: 50.33 | F159: 全空置 | H159: =E159*0.85*0.7/31*13 -> 12.56 | I159: 29.95 | J159: 29.95 | K159: 29.95 | L159: 102.40
A160: 282 | B160: 阳光小镇 | C160: 6# | D160: 20304 | E160: 49.96 | F160: 全空置 | H160: 0.00 | I160: 0.00 | J160: 0.00 | K160: 0.00 | L160: 0.00
A161: 284 | B161: 阳光小镇 | C161: 6# | D161: 20402 | E161: 50.33 | F161: 全空置 | H161: 12.56 | I161: =E161*0.85*0.7 -> 29.95 | J161: =E161*0.85*0.7 -> 29.95 | K161: =E161*0.85*0.7 -> 29.95 | L161: 102.40
A162: 285 | B162: 阳光小镇 | C162: 6# | D162: 20403 | E162: 50.33 | F162: 全空置 | H162: 12.56 | I162: 29.95 | J162: 29.95 | K162: 29.95 | L162: 102.40
A163: 286 | B163: 阳光小镇 | C163: 6# | D163: 20404 | E163: 49.96 | F163: 全空置 | H163: 0.00 | I163: 0.00 | J163: 29.73 | K163: 29.73 | L163: 59.45
A164: 291 | B164: 阳光小镇 | C164: 6# | D164: 20601 | E164: 49.96 | F164: 全空置 | H164: =E164*0.85*0.7/30*13 -> 12.88 | I164: 29.73 | J164: 29.73 | K164: 29.73 | L164: 102.06
A165: 292 | B165: 阳光小镇 | C165: 6# | D165: 20602 | E165: 50.33 | F165: 全空置 | H165: 0.00 | I165: 0.00 | J165: 0.00 | K165: 0.00 | L165: 0.00
A166: 295 | B166: 阳光小镇 | C166: 7# | D166: 10101 | E166: 45.22 | F166: 全空置 | H166: =E166*0.85*0.7/31*13 -> 11.28 | I166: =E166*0.85*0.7 -> 26.91 | J166: =E166*0.85*0.7 -> 26.91 | K166: =E166*0.85*0.7 -> 26.91 | L166: 92.00
A167: 296 | B167: 阳光小镇 | C167: 7# | D167: 10102 | E167: 49.93 | F167: 全空置 | H167: 12.46 | I167: 29.71 | J167: 29.71 | K167: 29.71 | L167: 101.58
A168: 297 | B168: 阳光小镇 | C168: 7# | D168: 10103 | E168: 49.93 | F168: 全空置 | H168: 12.46 | I168: 29.71 | J168: 29.71 | K168: 29.71 | L168: 101.58
A169: 298 | B169: 阳光小镇 | C169: 7# | D169: 10104 | E169: 44.17 | F169: 全空置 | H169: 11.02 | I169: 26.28 | J169: 26.28 | K169: 26.28 | L169: 89.86
A170: 299 | B170: 阳光小镇 | C170: 7# | D170: 10201 | E170: 45.22 | F170: 全空置 | H170: 11.28 | I170: 26.91 | J170: 26.91 | K170: 26.91 | L170: 92.00
A171: 300 | B171: 阳光小镇 | C171: 7# | D171: 10202 | E171: 49.93 | F171: 全空置 | H171: 12.46 | I171: 29.71 | J171: 29.71 | K171: 29.71 | L171: 101.58
A172: 301 | B172: 阳光小镇 | C172: 7# | D172: 10203 | E172: 49.93 | F172: 全空置 | H172: 12.46 | I172: 29.71 | J172: 29.71 | K172: 29.71 | L172: 101.58
A173: 302 | B173: 阳光小镇 | C173: 7# | D173: 10204 | E173: 44.17 | F173: 全空置 | H173: 11.02 | I173: 26.28 | J173: 26.28 | K173: 26.28 | L173: 89.86
A174: 303 | B174: 阳光小镇 | C174: 7# | D174: 10301 | E174: 45.22 | F174: 全空置 | H174: 11.28 | I174: 26.91 | J174: 26.91 | K174: 26.91 | L174: 92.00
A175: 304 | B175: 阳光小镇 | C175: 7# | D175: 10302 | E175: 49.93 | F175: 全空置 | H175: 12.46 | I175: 29.71 | J175: 29.71 | K175: 29.71 | L175: 101.58
A176: 305 | B176: 阳光小镇 | C176: 7# | D176: 10303 | E176: 49.93 | F176: 全空置 | H176: 12.46 | I176: 29.71 | J176: 29.71 | K176: 29.71 | L176: 101.58
A177: 306 | B177: 阳光小镇 | C177: 7# | D177: 10304 | E177: 44.17 | F177: 全空置 | H177: 11.02 | I177: 26.28 | J177: 26.28 | K177: 26.28 | L177: 89.86
A178: 307 | B178: 阳光小镇 | C178: 7# | D178: 10401 | E178: 45.22 | F178: 全空置 | H178: 11.28 | I178: 26.91 | J178: 26.91 | K178: 26.91 | L178: 92.00
A179: 308 | B179: 阳光小镇 | C179: 7# | D179: 10402 | E179: 49.93 | F179: 全空置 | H179: 12.46 | I179: 29.71 | J179: 29.71 | K179: 29.71 | L179: 101.58
A180: 309 | B180: 阳光小镇 | C180: 7# | D180: 10403 | E180: 49.93 | F180: 全空置 | H180: 12.46 | I180: 29.71 | J180: 29.71 | K180: 29.71 | L180: 101.58
A181: 310 | B181: 阳光小镇 | C181: 7# | D181: 10404 | E181: 44.17 | F181: 全空置 | H181: 11.02 | I181: 26.28 | J181: 26.28 | K181: 26.28 | L181: 89.86
A182: 311 | B182: 阳光小镇 | C182: 7# | D182: 10501 | E182: 45.22 | F182: 全空置 | H182: 11.28 | I182: 26.91 | J182: 26.91 | K182: 26.91 | L182: 92.00
A183: 312 | B183: 阳光小镇 | C183: 7# | D183: 10502 | E183: 49.93 | F183: 全空置 | H183: 12.46 | I183: 29.71 | J183: 29.71 | K183: 29.71 | L183: 101.58
A184: 313 | B184: 阳光小镇 | C184: 7# | D184: 10503 | E184: 49.93 | F184: 全空置 | H184: 12.46 | I184: 29.71 | J184: 29.71 | K184: 29.71 | L184: 101.58
A185: 314 | B185: 阳光小镇 | C185: 7# | D185: 10504 | E185: 44.17 | F185: 全空置 | H185: 11.02 | I185: 26.28 | J185: 26.28 | K185: 26.28 | L185: 89.86
A186: 315 | B186: 阳光小镇 | C186: 7# | D186: 10601 | E186: 45.22 | F186: 全空置 | H186: 11.28 | I186: 26.91 | J186: 26.91 | K186: 26.91 | L186: 92.00
A187: 316 | B187: 阳光小镇 | C187: 7# | D187: 10602 | E187: 49.93 | F187: 全空置 | H187: 12.46 | I187: 29.71 | J187: 29.71 | K187: 29.71 | L187: 101.58
A188: 317 | B188: 阳光小镇 | C188: 7# | D188: 10603 | E188: 49.93 | F188: 全空置 | H188: 12.46 | I188: 29.71 | J188: 29.71 | K188: 29.71 | L188: 101.58
A189: 318 | B189: 阳光小镇 | C189: 7# | D189: 10604 | E189: 44.17 | F189: 全空置 | H189: 11.02 | I189: 26.28 | J189: 26.28 | K189: 26.28 | L189: 89.86
A190: 320 | B190: 阳光小镇 | C190: 7# | D190: 20102 | E190: 49.93 | F190: 全空置 | H190: 12.46 | I190: 29.71 | J190: 29.71 | K190: 29.71 | L190: 101.58
A191: 321 | B191: 阳光小镇 | C191: 7# | D191: 20103 | E191: 49.93 | F191: 全空置 | H191: 0.00 | I191: 0.00 | J191: 0.00 | K191: =E191*0.85*0.7/31*10 -> 9.58 | L191: 9.58
A192: 322 | B192: 阳光小镇 | C192: 7# | D192: 20104 | E192: 44.17 | F192: 全空置 | H192: =E192*0.85*0.7/31*13 -> 11.02 | I192: =E192*0.85*0.7 -> 26.28 | J192: =E192*0.85*0.7 -> 26.28 | K192: =E192*0.85*0.7 -> 26.28 | L192: 89.86
A193: 324 | B193: 阳光小镇 | C193: 7# | D193: 20202 | E193: 49.93 | F193: 全空置 | H193: 12.46 | I193: 29.71 | J193: 29.71 | K193: 29.71 | L193: 101.58
A194: 326 | B194: 阳光小镇 | C194: 7# | D194: 20204 | E194: 44.17 | F194: 全空置 | H194: 11.02 | I194: 26.28 | J194: 26.28 | K194: 26.28 | L194: 89.86
A195: 327 | B195: 阳光小镇 | C195: 7# | D195: 20301 | E195: 44.17 | F195: 全空置 | H195: 11.02 | I195: 26.28 | J195: 26.28 | K195: 26.28 | L195: 89.86
A196: 328 | B196: 阳光小镇 | C196: 7# | D196: 20302 | E196: 49.93 | F196: 全空置 | H196: 12.46 | I196: 29.71 | J196: 29.71 | K196: 29.71 | L196: =H196+I196+J196+K196 -> 101.58
A197: 329 | B197: 阳光小镇 | C197: 7# | D197: 20303 | E197: 49.93 | F197: 全空置 | H197: 0.00 | I197: 0.00 | J197: =E197*0.85*0.7/30*4 -> 3.96 | K197: 29.71 | L197: 33.67
A198: 331 | B198: 阳光小镇 | C198: 7# | D198: 20401 | E198: 44.17 | F198: 全空置 | H198: =E198*0.85*0.7/31*13 -> 11.02 | I198: =E198*0.85*0.7 -> 26.28 | J198: =E198*0.85*0.7 -> 26.28 | K198: 26.28 | L198: 89.86
A199: 332 | B199: 阳光小镇 | C199: 7# | D199: 20402 | E199: 49.93 | F199: 全空置 | H199: 12.46 | I199: 29.71 | J199: 29.71 | K199: 29.71 | L199: 101.58
A200: 333 | B200: 阳光小镇 | C200: 7# | D200: 20403 | E200: 49.93 | F200: 全空置 | H200: 12.46 | I200: 29.71 | J200: 29.71 | K200: 29.71 | L200: 101.58
... 212 more rows
